Workbook

Sheet Control
C30: Numerical value
C31: Suggested formula
C32: Probabilistic parameters
C33: Data specified elsewhere
C34: Suggested formula edited

Sheet Stabilised Wast (hidden)
A1: SOURCE CONCENTRATIONS: Stabilised Wast | B1: SOIL SOURCE
A3: Source Data Options | B3: Source Type
A11: Target Standard
A13: Select which Quality Standard (defined on the Contaminants sheet) to apply
A14: Not Specified
A17: Source Geometry
A19: Stabilised_Wast_Source_length | C19: m
A20: Stabilised_Wast_Source_width | C20: m
A21: Stabilised_Wast_Source_area | B21: 17418 | C21: m2
A22: Stabilised_Wast_Source_thickness | B22: 1 | C22: m
A23: Stabilised_Wast_Source_volume | B23: =Stabilised_Wast_Source_area * Stabilised_Wast_Source_thickness -> 17418 | C23: m3
A26: General Source Properties
A28: Stabilised_Wast_Source_field_capacity | B28: [-] | C28: 0.1
A29: Distribution | C29: constant
A30: Stabilised_Wast_Source_field_capacity_param1
A31: Stabilised_Wast_Source_field_capacity_param2
A32: Stabilised_Wast_Source_field_capacity_param3
A35: Stabilised_Wast_Source_porosity_total | B35: [-]
A36: Distribution | C36: constant
A37: Stabilised_Wast_Source_porosity_total_param1
A38: Stabilised_Wast_Source_porosity_total_param2
A39: Stabilised_Wast_Source_porosity_total_param3
A42: Stabilised_Wast_Source_porosity_water_filled | B42: [-]
A43: Distribution | C43: constant
A44: Stabilised_Wast_Source_porosity_water_filled_param1
A45: Stabilised_Wast_Source_porosity_water_filled_param2
A46: Stabilised_Wast_Source_porosity_water_filled_param3
A49: Stabilised_Wast_Source_porosity_air_filled | B49: [-] | C49: =Stabilised_Wast_Source_porosity_total - Stabilised_Wast_Source_porosity_water_filled -> 0
A50: Distribution | C50: constant
A51: Stabilised_Wast_Source_porosity_air_filled_param1
A52: Stabilised_Wast_Source_porosity_air_filled_param2
A53: Stabilised_Wast_Source_porosity_air_filled_param3
A56: Stabilised_Wast_Source_dry_bulk_density | B56: kg/m3
A57: Distribution | C57: constant
A58: Stabilised_Wast_Source_dry_bulk_density_param1
A59: Stabilised_Wast_Source_dry_bulk_density_param2
A60: Stabilised_Wast_Source_dry_bulk_density_param3
A63: Stabilised_Wast_Source_fraction_organic_carbon | B63: [-]
A64: Distribution | C64: constant
A65: Stabilised_Wast_Source_fraction_organic_carbon_param1
A66: Stabilised_Wast_Source_fraction_organic_carbon_param2
A67: Stabilised_Wast_Source_fraction_organic_carbon_param3
A71: Source Contaminant Information
A73: Source determinand names | C73: =IF( ISTEXT( (Contaminants_Source_determinand_names Contaminants_Species1)), (Contaminants_Source_determinand_names Contaminants_Species1), "Undefined" ) -> Cr | D73: =IF( ISTEXT( (Contaminants_Source_determinand_names Contaminants_Species2)), (Contaminants_Source_determinand_names Contaminants_Species2), "Undefined" ) -> Phenol | E73: =IF( ISTEXT( (Contaminants_Source_determinand_names Contaminants_Species3)), (Contaminants_Source_determinand_names Contaminants_Species3), "Undefined" ) -> Hg | F73: =IF( ISTEXT( (Contaminants_Source_determinand_names Contaminants_Species4)), (Contaminants_Source_determinand_names Contaminants_Species4), "Undefined" ) -> Pb | G73: =IF( ISTEXT( (Contaminants_Source_determinand_names Contaminants_Species5)), (Contaminants_Source_determinand_names Contaminants_Species5), "Undefined" ) -> Undefined | H73: =IF( ISTEXT( (Contaminants_Source_determinand_names Contaminants_Species6)), (Contaminants_Source_determinand_names Contaminants_Species6), "Undefined" ) -> Undefined | I73: =IF( ISTEXT( (Contaminants_Source_determinand_names Contaminants_Species7)), (Contaminants_Source_determinand_names Contaminants_Species7), "Undefined" ) -> Undefined | J73: =IF( ISTEXT( (Contaminants_Source_determinand_names Contaminants_Species8)), (Contaminants_Source_determinand_names Contaminants_Species8), "Undefined" ) -> Undefined
A75: Stabilised_Wast_Pore_water_concentration | B75: mg/L | C75: 0.011 | D75: 0.003 | E75: 4e-05 | F75: 0.0005
A76: Distribution | C76: constant | D76: constant | E76: constant | F76: constant | G76: constant | H76: constant | I76: constant | J76: constant
A77: Stabilised_Wast_Pore_water_concentration_param1
A78: Stabilised_Wast_Pore_water_concentration_param2
A79: Stabilised_Wast_Pore_water_concentration_param3
A82: Stabilised_Wast_Leaching_test_concentration | B82: mg/L
A83: Distribution | C83: constant | D83: constant | E83: constant | F83: constant | G83: constant | H83: constant | I83: constant | J83: constant
A84: Stabilised_Wast_Leaching_test_concentration_param1
A85: Stabilised_Wast_Leaching_test_concentration_param2
A86: Stabilised_Wast_Leaching_test_concentration_param3
A89: Stabilised_Wast_Soil_contaminant_concentration | B89: mg/kg
A90: Distribution | C90: constant | D90: constant | E90: constant | F90: constant | G90: constant | H90: constant | I90: constant | J90: constant
A91: Stabilised_Wast_Soil_contaminant_concentration_param1
A92: Stabilised_Wast_Soil_contaminant_concentration_param2
A93: Stabilised_Wast_Soil_contaminant_concentration_param3
A96: Stabilised_Wast_Source_solid_water_partitioning_coefficient_Kd | B96: L/kg | C96: =(Contaminants_Organic_Carbon_Water_Partition_Coefficient_Koc Contaminants_Species1) * ( Stabilised_Wast_Source_fraction_organic_carbon) -> 0 | D96: =(Contaminants_Organic_Carbon_Water_Partition_Coefficient_Koc Contaminants_Species2) * ( Stabilised_Wast_Source_fraction_organic_carbon) -> 0 | E96: =(Contaminants_Organic_Carbon_Water_Partition_Coefficient_Koc Contaminants_Species3) * ( Stabilised_Wast_Source_fraction_organic_carbon) -> 0 | F96: =(Contaminants_Organic_Carbon_Water_Partition_Coefficient_Koc Contaminants_Species4) * ( Stabilised_Wast_Source_fraction_organic_carbon) -> 0 | G96: =(Contaminants_Organic_Carbon_Water_Partition_Coefficient_Koc Contaminants_Species5) * ( Stabilised_Wast_Source_fraction_organic_carbon) -> 0 | H96: =(Contaminants_Organic_Carbon_Water_Partition_Coefficient_Koc Contaminants_Species6) * ( Stabilised_Wast_Source_fraction_organic_carbon) -> 0 | I96: =(Contaminants_Organic_Carbon_Water_Partition_Coefficient_Koc Contaminants_Species7) * ( Stabilised_Wast_Source_fraction_organic_carbon) -> 0 | J96: =(Contaminants_Organic_Carbon_Water_Partition_Coefficient_Koc Contaminants_Species8) * ( Stabilised_Wast_Source_fraction_organic_carbon) -> 0
A97: Distribution | C97: constant | D97: constant | E97: constant | F97: constant | G97: constant | H97: constant | I97: constant | J97: constant
A98: Stabilised_Wast_Source_solid_water_partitioning_coefficient_Kd_param1
A99: Stabilised_Wast_Source_solid_water_partitioning_coefficient_Kd_param2
A100: Stabilised_Wast_Source_solid_water_partitioning_coefficient_Kd_param3
A103: Stabilised_Wast_Initial_inventory | B103: kg | C103: =0.001 * (Stabilised_Wast_Pore_water_concentration) * (Stabilised_Wast_Source_field_capacity) * (Stabilised_Wast_Source_volume) -> 0.0191598 | D103: 0.0052254 | E103: 6.9672e-05 | F103: 0.0008709 | G103: 0 | H103: 0 | I103: 0 | J103: 0
A104: Distribution | C104: constant | D104: constant | E104: constant | F104: constant | G104: constant | H104: constant | I104: constant | J104: constant
A105: Stabilised_Wast_Initial_inventory_param1
A106: Stabilised_Wast_Initial_inventory_param2
A107: Stabilised_Wast_Initial_inventory_param3
A110: Stabilised_Wast_Kappa_slope_value_m | B110: kg/L
A111: Distribution | C111: constant | D111: constant | E111: constant | F111: constant | G111: constant | H111: constant | I111: constant | J111: constant
A112: Stabilised_Wast_Kappa_slope_value_m_param1
A113: Stabilised_Wast_Kappa_slope_value_m_param2
A114: Stabilised_Wast_Kappa_slope_value_m_param3
A117: Stabilised_Wast_Kappa_intercept_value_c | B117: kg/L
A118: Distribution | C118: constant | D118: constant | E118: constant | F118: constant | G118: constant | H118: constant | I118: constant | J118: constant
A119: Stabilised_Wast_Kappa_intercept_value_c_param1
A120: Stabilised_Wast_Kappa_intercept_value_c_param2
A121: Stabilised_Wast_Kappa_intercept_value_c_param3
A124: Stabilised_Wast_Kappa_Value | B124: kg/L | C124: =IF(AND(ISNUMBER(Stabilised_Wast_Kappa_slope_value_m),ISNUMBER(Stabilised_Wast_Kappa_intercept_value_c),ISNUMBER(Stabilised_Wast_Input_concentration)), IF(Stabilised_Wast_Input_concentration>0,MAX(0,Stabilised_Wast_Kappa_slope_value_m * LN(1000 * Stabilised_Wast_Input_concentration) + Stabilised_Wast_Kappa_intercept_value_c),""),"Not-used") -> Not-used | D124: Not-used | E124: Not-used | F124: Not-used | G124: Not-used | H124: Not-used | I124: Not-used | J124: Not-used
A125: Distribution | C125: constant | D125: constant | E125: constant | F125: constant | G125: constant | H125: constant | I125: constant | J125: constant
A126: Stabilised_Wast_Kappa_Value_param1
A127: Stabilised_Wast_Kappa_Value_param2
A128: Stabilised_Wast_Kappa_Value_param3
A131: Stabilised_Wast_Input_concentration | B131: mg/L | C131: =(Stabilised_Wast_Pore_water_concentration) -> 0.011 | D131: 0.003 | E131: 4e-05 | F131: 0.0005 | G131: 0 | H131: 0 | I131: 0 | J131: 0

Sheet Contaminants
A1: CONTAMINANT INFORMATION
D3: Species1 | E3: Species2 | F3: Species3 | G3: Species4 | H3: Species5 | I3: Species6 | J3: Species7 | K3: Species8
A4: Source determinand names | C4: 4 | D4: Cr | E4: Phenol | F4: Hg | G4: Pb
A7: Receptor Target Concentrations
B8: Name | D8: Values in mg/L
A9: Quality Standard 1 | B9: EAL | D9: 0.001 | E9: 0.0005 | F9: 2e-05 | G9: 0.0002
A10: Quality Standard 2
A11: Quality Standard 3
A12: Quality Standard 4
B13: Not Specified
A15: Generic Contaminant Properties
A17: Contaminants_Solubility | B17: mg/L
A18: Distribution | D18: constant | E18: constant | F18: constant | G18: constant | H18: constant | I18: constant | J18: constant | K18: constant
A19: Contaminants_Solubility_param1
A20: Contaminants_Solubility_param2
A21: Contaminants_Solubility_param3
A24: Contaminants_Henrys_Law_Constant | B24: [-]
A25: Distribution | D25: constant | E25: constant | F25: constant | G25: constant | H25: constant | I25: constant | J25: constant | K25: constant
A26: Contaminants_Henrys_Law_Constant_param1
A27: Contaminants_Henrys_Law_Constant_param2
A28: Contaminants_Henrys_Law_Constant_param3
A31: Contaminants_Organic_Carbon_Water_Partition_Coefficient_Koc | B31: L/kg
A32: Distribution | D32: constant | E32: constant | F32: constant | G32: constant | H32: constant | I32: constant | J32: constant | K32: constant
A33: Contaminants_Organic_Carbon_Water_Partition_Coefficient_Koc_param1
A34: Contaminants_Organic_Carbon_Water_Partition_Coefficient_Koc_param2
A35: Contaminants_Organic_Carbon_Water_Partition_Coefficient_Koc_param3
A38: Contaminants_Free_Water_Diffusion_Coefficient | B38: m2/s
A39: Distribution | D39: constant | E39: constant | F39: constant | G39: constant | H39: constant | I39: constant | J39: constant | K39: constant
A40: Contaminants_Free_Water_Diffusion_Coefficient_param1
A41: Contaminants_Free_Water_Diffusion_Coefficient_param2
A42: Contaminants_Free_Water_Diffusion_Coefficient_param3

Sheet Hydrogeology
A1: HYDROGEOLOGICAL UNITS
A3: Hydrogeological Units | C3: Unsat MG | D3: Sat MG | E3: Alluvium | F3: Chalk
A5: Hydrogeology_Unit_Thickness | B5: m | C5: =mAOD-h_mg -> 0.9892648997 | D5: =h_mg-B_mg -> 1.0107351 | E5: =t_al -> 3 | F5: =t_ck -> 50
A6: Distribution | C6: constant | D6: constant | E6: constant | F6: constant | G6: constant | H6: constant | I6: constant | J6: constant | K6: constant | L6: constant | M6: constant | N6: constant | O6: constant | P6: constant | Q6: constant | R6: constant
A7: Hydrogeology_Unit_Thickness_param1
A8: Hydrogeology_Unit_Thickness_param2
A9: Hydrogeology_Unit_Thickness_param3
A12: Hydrogeology_Log_Hydraulic_Conductivity | B12: log(m/s)
A13: Distribution | C13: constant | D13: constant | E13: constant | F13: constant | G13: constant | H13: constant | I13: constant | J13: constant | K13: constant | L13: constant | M13: constant | N13: constant | O13: constant | P13: constant | Q13: constant | R13: constant
A14: Hydrogeology_Log_Hydraulic_Conductivity_param1
A15: Hydrogeology_Log_Hydraulic_Conductivity_param2
A16: Hydrogeology_Log_Hydraulic_Conductivity_param3
A19: Hydrogeology_Hydraulic_Conductivity | B19: m/s | C19: =POWER(10, (Hydrogeology_Log_Hydraulic_Conductivity)) -> 1 | D19: =K_mg -> 1e-05 | E19: =K_al -> 1e-08 | F19: =k_ck -> 5.787037037e-05 | G19: 1 | H19: 1 | I19: 1 | J19: 1 | K19: 1 | L19: 1 | M19: 1 | N19: 1 | O19: 1 | P19: 1 | Q19: 1 | R19: 1
A20: Distribution | C20: constant | D20: constant | E20: constant | F20: constant | G20: constant | H20: constant | I20: constant | J20: constant | K20: constant | L20: constant | M20: constant | N20: constant | O20: constant | P20: constant | Q20: constant | R20: constant
A21: Hydrogeology_Hydraulic_Conductivity_param1
A22: Hydrogeology_Hydraulic_Conductivity_param2
A23: Hydrogeology_Hydraulic_Conductivity_param3
A26: Hydrogeology_Head | B26: m
A27: Distribution | C27: constant | D27: constant | E27: constant | F27: constant | G27: constant | H27: constant | I27: constant | J27: constant | K27: constant | L27: constant | M27: constant | N27: constant | O27: constant | P27: constant | Q27: constant | R27: constant
A28: Hydrogeology_Head_param1
A29: Hydrogeology_Head_param2
A30: Hydrogeology_Head_param3
A33: Hydrogeology_Hydraulic_Gradient | B33: [-]
A34: Distribution | C34: constant | D34: constant | E34: constant | F34: constant | G34: constant | H34: constant | I34: constant | J34: constant | K34: constant | L34: constant | M34: constant | N34: constant | O34: constant | P34: constant | Q34: constant | R34: constant
A35: Hydrogeology_Hydraulic_Gradient_param1
A36: Hydrogeology_Hydraulic_Gradient_param2
A37: Hydrogeology_Hydraulic_Gradient_param3
A40: Hydrogeology_Porosity | B40: [-] | C40: 0.1 | D40: 0.1 | E40: 0.01 | F40: 0.1
A41: Distribution | C41: constant | D41: constant | E41: constant | F41: constant | G41: constant | H41: constant | I41: constant | J41: constant | K41: constant | L41: constant | M41: constant | N41: constant | O41: constant | P41: constant | Q41: constant | R41: constant
A42: Hydrogeology_Porosity_param1
A43: Hydrogeology_Porosity_param2
A44: Hydrogeology_Porosity_param3
A47: Hydrogeology_Velocity | B47: m/s | C47: =(Hydrogeology_Hydraulic_Conductivity) * (Hydrogeology_Hydraulic_Gradient) / (Hydrogeology_Porosity) -> 0 | D47: 0 | E47: 0 | F47: 0
A48: Distribution | C48: constant | D48: constant | E48: constant | F48: constant | G48: constant | H48: constant | I48: constant | J48: constant | K48: constant | L48: constant | M48: constant | N48: constant | O48: constant | P48: constant | Q48: constant | R48: constant
A49: Hydrogeology_Velocity_param1
A50: Hydrogeology_Velocity_param2
A51: Hydrogeology_Velocity_param3
A54: Hydrogeology_Tortuosity | B54: [-]
A55: Distribution | C55: constant | D55: constant | E55: constant | F55: constant | G55: constant | H55: constant | I55: constant | J55: constant | K55: constant | L55: constant | M55: constant | N55: constant | O55: constant | P55: constant | Q55: constant | R55: constant
A56: Hydrogeology_Tortuosity_param1
A57: Hydrogeology_Tortuosity_param2
A58: Hydrogeology_Tortuosity_param3

Sheet Attenuation
A1: ATTENUATION PARAMETERS
A3: Hydrogeological Units | C3: Unsat MG | D3: Sat MG | E3: Alluvium | F3: Chalk
A5: General properties
A7: Attenuation_Dry_bulk_density | B7: kg/m3 | C7: 1800 | D7: 1800 | E7: 1800 | F7: 1800
A8: Distribution | C8: constant | D8: constant | E8: constant | F8: constant | G8: constant | H8: constant | I8: constant | J8: constant | K8: constant | L8: constant | M8: constant | N8: constant | O8: constant | P8: constant | Q8: constant | R8: constant
A9: Attenuation_Dry_bulk_density_param1
A10: Attenuation_Dry_bulk_density_param2
A11: Attenuation_Dry_bulk_density_param3
A14: Attenuation_Fraction_organic_carbon | B14: [-]
A15: Distribution | C15: constant | D15: constant | E15: constant | F15: constant | G15: constant | H15: constant | I15: constant | J15: constant | K15: constant | L15: constant | M15: constant | N15: constant | O15: constant | P15: constant | Q15: constant | R15: constant
A16: Attenuation_Fraction_organic_carbon_param1
A17: Attenuation_Fraction_organic_carbon_param2
A18: Attenuation_Fraction_organic_carbon_param3
A22: Contaminant specific parameters
A24: =IF((Contaminants_Source_determinand_names Contaminants_Species1)=0,"Undefined",(Contaminants_Source_determinand_names Contaminants_Species1)) -> Cr
A26: Attenuation_Partition_Coefficient_Kd_Species_1 | B26: L/kg | C26: 2200 | D26: =C26 -> 2200 | E26: =C26 -> 2200 | F26: =C26 -> 2200 | G26: =(Attenuation_Fraction_organic_carbon) * (Contaminants_Organic_Carbon_Water_Partition_Coefficient_Koc Contaminants_Species1) -> 0 | H26: =(Attenuation_Fraction_organic_carbon) * (Contaminants_Organic_Carbon_Water_Partition_Coefficient_Koc Contaminants_Species1) -> 0 | I26: =(Attenuation_Fraction_organic_carbon) * (Contaminants_Organic_Carbon_Water_Partition_Coefficient_Koc Contaminants_Species1) -> 0 | J26: =(Attenuation_Fraction_organic_carbon) * (Contaminants_Organic_Carbon_Water_Partition_Coefficient_Koc Contaminants_Species1) -> 0 | K26: =(Attenuation_Fraction_organic_carbon) * (Contaminants_Organic_Carbon_Water_Partition_Coefficient_Koc Contaminants_Species1) -> 0 | L26: =(Attenuation_Fraction_organic_carbon) * (Contaminants_Organic_Carbon_Water_Partition_Coefficient_Koc Contaminants_Species1) -> 0 | M26: =(Attenuation_Fraction_organic_carbon) * (Contaminants_Organic_Carbon_Water_Partition_Coefficient_Koc Contaminants_Species1) -> 0 | N26: =(Attenuation_Fraction_organic_carbon) * (Contaminants_Organic_Carbon_Water_Partition_Coefficient_Koc Contaminants_Species1) -> 0 | O26: =(Attenuation_Fraction_organic_carbon) * (Contaminants_Organic_Carbon_Water_Partition_Coefficient_Koc Contaminants_Species1) -> 0 | P26: =(Attenuation_Fraction_organic_carbon) * (Contaminants_Organic_Carbon_Water_Partition_Coefficient_Koc Contaminants_Species1) -> 0 | Q26: =(Attenuation_Fraction_organic_carbon) * (Contaminants_Organic_Carbon_Water_Partition_Coefficient_Koc Contaminants_Species1) -> 0 | R26: =(Attenuation_Fraction_organic_carbon) * (Contaminants_Organic_Carbon_Water_Partition_Coefficient_Koc Contaminants_Species1) -> 0
A27: Distribution | C27: constant | D27: constant | E27: constant | F27: constant | G27: constant | H27: constant | I27: constant | J27: constant | K27: constant | L27: constant | M27: constant | N27: constant | O27: constant | P27: constant | Q27: constant | R27: constant
A28: Attenuation_Partition_Coefficient_Kd_Species_1_param1
A29: Attenuation_Partition_Coefficient_Kd_Species_1_param2
A30: Attenuation_Partition_Coefficient_Kd_Species_1_param3
A33: Attenuation_Retardation_Species_1 | B33: [-] | C33: =1 + 0.001 * (Attenuation_Partition_Coefficient_Kd_Species_1) * (Attenuation_Dry_bulk_density) / (Hydrogeology_Porosity Hydrogeology!$C:$C) -> 39601 | D33: =1 + 0.001 * (Attenuation_Partition_Coefficient_Kd_Species_1) * (Attenuation_Dry_bulk_density) / (Hydrogeology_Porosity Hydrogeology!$D:$D) -> 39601 | E33: =1 + 0.001 * (Attenuation_Partition_Coefficient_Kd_Species_1) * (Attenuation_Dry_bulk_density) / (Hydrogeology_Porosity Hydrogeology!$E:$E) -> 396001 | F33: =1 + 0.001 * (Attenuation_Partition_Coefficient_Kd_Species_1) * (Attenuation_Dry_bulk_density) / (Hydrogeology_Porosity Hydrogeology!$F:$F) -> 39601 | G33: =1 + 0.001 * (Attenuation_Partition_Coefficient_Kd_Species_1) * (Attenuation_Dry_bulk_density) / (Hydrogeology_Porosity Hydrogeology!$G:$G) ->  | H33: =1 + 0.001 * (Attenuation_Partition_Coefficient_Kd_Species_1) * (Attenuation_Dry_bulk_density) / (Hydrogeology_Porosity Hydrogeology!$H:$H) ->  | I33: =1 + 0.001 * (Attenuation_Partition_Coefficient_Kd_Species_1) * (Attenuation_Dry_bulk_density) / (Hydrogeology_Porosity Hydrogeology!$I:$I) ->  | J33: =1 + 0.001 * (Attenuation_Partition_Coefficient_Kd_Species_1) * (Attenuation_Dry_bulk_density) / (Hydrogeology_Porosity Hydrogeology!$J:$J) ->  | K33: =1 + 0.001 * (Attenuation_Partition_Coefficient_Kd_Species_1) * (Attenuation_Dry_bulk_density) / (Hydrogeology_Porosity Hydrogeology!$K:$K) ->  | L33: =1 + 0.001 * (Attenuation_Partition_Coefficient_Kd_Species_1) * (Attenuation_Dry_bulk_density) / (Hydrogeology_Porosity Hydrogeology!$L:$L) ->  | M33: =1 + 0.001 * (Attenuation_Partition_Coefficient_Kd_Species_1) * (Attenuation_Dry_bulk_density) / (Hydrogeology_Porosity Hydrogeology!$M:$M) ->  | N33: =1 + 0.001 * (Attenuation_Partition_Coefficient_Kd_Species_1) * (Attenuation_Dry_bulk_density) / (Hydrogeology_Porosity Hydrogeology!$N:$N) ->  | O33: =1 + 0.001 * (Attenuation_Partition_Coefficient_Kd_Species_1) * (Attenuation_Dry_bulk_density) / (Hydrogeology_Porosity Hydrogeology!$O:$O) ->  | P33: =1 + 0.001 * (Attenuation_Partition_Coefficient_Kd_Species_1) * (Attenuation_Dry_bulk_density) / (Hydrogeology_Porosity Hydrogeology!$P:$P) ->  | Q33: =1 + 0.001 * (Attenuation_Partition_Coefficient_Kd_Species_1) * (Attenuation_Dry_bulk_density) / (Hydrogeology_Porosity Hydrogeology!$Q:$Q) ->  | R33: =1 + 0.001 * (Attenuation_Partition_Coefficient_Kd_Species_1) * (Attenuation_Dry_bulk_density) / (Hydrogeology_Porosity Hydrogeology!$R:$R) -> 
A34: Distribution | C34: constant | D34: constant | E34: constant | F34: constant | G34: constant | H34: constant | I34: constant | J34: constant | K34: constant | L34: constant | M34: constant | N34: constant | O34: constant | P34: constant | Q34: constant | R34: constant
A35: Attenuation_Retardation_Species_1_param1
A36: Attenuation_Retardation_Species_1_param2
A37: Attenuation_Retardation_Species_1_param3
A40: Attenuation_Half_Life_Species_1 | B40: days | C40: No Decay | D40: No Decay | E40: No Decay | F40: No Decay | G40: No Decay | H40: No Decay | I40: No Decay | J40: No Decay | K40: No Decay | L40: No Decay | M40: No Decay | N40: No Decay | O40: No Decay | P40: No Decay | Q40: No Decay | R40: No Decay
A41: Distribution | C41: constant | D41: constant | E41: constant | F41: constant | G41: constant | H41: constant | I41: constant | J41: constant | K41: constant | L41: constant | M41: constant | N41: constant | O41: constant | P41: constant | Q41: constant | R41: constant
A42: Attenuation_Half_Life_Species_1_param1
A43: Attenuation_Half_Life_Species_1_param2
A44: Attenuation_Half_Life_Species_1_param3
A47: Attenuation_Decay_Coefficient_Species_1 | B47: 1/s | C47: =IF((_xlfn.SINGLE(Attenuation_Half_Life_Species_1))<>"No Decay", LN(2) / ((_xlfn.SINGLE(Attenuation_Half_Life_Species_1)) *_xlfn.SINGLE( s_per_day)),0) -> 0 | D47: 0 | E47: 0 | F47: 0 | G47: 0 | H47: 0 | I47: 0 | J47: 0 | K47: 0 | L47: 0 | M47: 0 | N47: 0 | O47: 0 | P47: 0 | Q47: 0 | R47: 0
A48: Distribution | C48: constant | D48: constant | E48: constant | F48: constant | G48: constant | H48: constant | I48: constant | J48: constant | K48: constant | L48: constant | M48: constant | N48: constant | O48: constant | P48: constant | Q48: constant | R48: constant
A49: Attenuation_Decay_Coefficient_Species_1_param1
A50: Attenuation_Decay_Coefficient_Species_1_param2
A51: Attenuation_Decay_Coefficient_Species_1_param3
A54: =IF((Contaminants_Source_determinand_names Contaminants_Species2)=0,"Undefined",(Contaminants_Source_determinand_names Contaminants_Species2)) -> Phenol
A56: Attenuation_Partition_Coefficient_Kd_Species_2 | B56: L/kg | C56: 0.22 | D56: =C56 -> 0.22 | E56: =C56 -> 0.22 | F56: =C56 -> 0.22 | G56: =(Attenuation_Fraction_organic_carbon) * (Contaminants_Organic_Carbon_Water_Partition_Coefficient_Koc Contaminants_Species2) -> 0 | H56: =(Attenuation_Fraction_organic_carbon) * (Contaminants_Organic_Carbon_Water_Partition_Coefficient_Koc Contaminants_Species2) -> 0 | I56: =(Attenuation_Fraction_organic_carbon) * (Contaminants_Organic_Carbon_Water_Partition_Coefficient_Koc Contaminants_Species2) -> 0 | J56: =(Attenuation_Fraction_organic_carbon) * (Contaminants_Organic_Carbon_Water_Partition_Coefficient_Koc Contaminants_Species2) -> 0 | K56: =(Attenuation_Fraction_organic_carbon) * (Contaminants_Organic_Carbon_Water_Partition_Coefficient_Koc Contaminants_Species2) -> 0 | L56: =(Attenuation_Fraction_organic_carbon) * (Contaminants_Organic_Carbon_Water_Partition_Coefficient_Koc Contaminants_Species2) -> 0 | M56: =(Attenuation_Fraction_organic_carbon) * (Contaminants_Organic_Carbon_Water_Partition_Coefficient_Koc Contaminants_Species2) -> 0 | N56: =(Attenuation_Fraction_organic_carbon) * (Contaminants_Organic_Carbon_Water_Partition_Coefficient_Koc Contaminants_Species2) -> 0 | O56: =(Attenuation_Fraction_organic_carbon) * (Contaminants_Organic_Carbon_Water_Partition_Coefficient_Koc Contaminants_Species2) -> 0 | P56: =(Attenuation_Fraction_organic_carbon) * (Contaminants_Organic_Carbon_Water_Partition_Coefficient_Koc Contaminants_Species2) -> 0 | Q56: =(Attenuation_Fraction_organic_carbon) * (Contaminants_Organic_Carbon_Water_Partition_Coefficient_Koc Contaminants_Species2) -> 0 | R56: =(Attenuation_Fraction_organic_carbon) * (Contaminants_Organic_Carbon_Water_Partition_Coefficient_Koc Contaminants_Species2) -> 0
A57: Distribution | C57: constant | D57: constant | E57: constant | F57: constant | G57: constant | H57: constant | I57: constant | J57: constant | K57: constant | L57: constant | M57: constant | N57: constant | O57: constant | P57: constant | Q57: constant | R57: constant
A58: Attenuation_Partition_Coefficient_Kd_Species_2_param1
A59: Attenuation_Partition_Coefficient_Kd_Species_2_param2
A60: Attenuation_Partition_Coefficient_Kd_Species_2_param3
A63: Attenuation_Retardation_Species_2 | B63: [-] | C63: =1 + 0.001 * (Attenuation_Partition_Coefficient_Kd_Species_2) * (Attenuation_Dry_bulk_density) / (Hydrogeology_Porosity Hydrogeology!$C:$C) -> 4.96 | D63: =1 + 0.001 * (Attenuation_Partition_Coefficient_Kd_Species_2) * (Attenuation_Dry_bulk_density) / (Hydrogeology_Porosity Hydrogeology!$D:$D) -> 4.96 | E63: =1 + 0.001 * (Attenuation_Partition_Coefficient_Kd_Species_2) * (Attenuation_Dry_bulk_density) / (Hydrogeology_Porosity Hydrogeology!$E:$E) -> 40.6 | F63: =1 + 0.001 * (Attenuation_Partition_Coefficient_Kd_Species_2) * (Attenuation_Dry_bulk_density) / (Hydrogeology_Porosity Hydrogeology!$F:$F) -> 4.96 | G63: =1 + 0.001 * (Attenuation_Partition_Coefficient_Kd_Species_2) * (Attenuation_Dry_bulk_density) / (Hydrogeology_Porosity Hydrogeology!$G:$G) ->  | H63: =1 + 0.001 * (Attenuation_Partition_Coefficient_Kd_Species_2) * (Attenuation_Dry_bulk_density) / (Hydrogeology_Porosity Hydrogeology!$H:$H) ->  | I63: =1 + 0.001 * (Attenuation_Partition_Coefficient_Kd_Species_2) * (Attenuation_Dry_bulk_density) / (Hydrogeology_Porosity Hydrogeology!$I:$I) ->  | J63: =1 + 0.001 * (Attenuation_Partition_Coefficient_Kd_Species_2) * (Attenuation_Dry_bulk_density) / (Hydrogeology_Porosity Hydrogeology!$J:$J) ->  | K63: =1 + 0.001 * (Attenuation_Partition_Coefficient_Kd_Species_2) * (Attenuation_Dry_bulk_density) / (Hydrogeology_Porosity Hydrogeology!$K:$K) ->  | L63: =1 + 0.001 * (Attenuation_Partition_Coefficient_Kd_Species_2) * (Attenuation_Dry_bulk_density) / (Hydrogeology_Porosity Hydrogeology!$L:$L) ->  | M63: =1 + 0.001 * (Attenuation_Partition_Coefficient_Kd_Species_2) * (Attenuation_Dry_bulk_density) / (Hydrogeology_Porosity Hydrogeology!$M:$M) ->  | N63: =1 + 0.001 * (Attenuation_Partition_Coefficient_Kd_Species_2) * (Attenuation_Dry_bulk_density) / (Hydrogeology_Porosity Hydrogeology!$N:$N) ->  | O63: =1 + 0.001 * (Attenuation_Partition_Coefficient_Kd_Species_2) * (Attenuation_Dry_bulk_density) / (Hydrogeology_Porosity Hydrogeology!$O:$O) ->  | P63: =1 + 0.001 * (Attenuation_Partition_Coefficient_Kd_Species_2) * (Attenuation_Dry_bulk_density) / (Hydrogeology_Porosity Hydrogeology!$P:$P) ->  | Q63: =1 + 0.001 * (Attenuation_Partition_Coefficient_Kd_Species_2) * (Attenuation_Dry_bulk_density) / (Hydrogeology_Porosity Hydrogeology!$Q:$Q) ->  | R63: =1 + 0.001 * (Attenuation_Partition_Coefficient_Kd_Species_2) * (Attenuation_Dry_bulk_density) / (Hydrogeology_Porosity Hydrogeology!$R:$R) -> 
A64: Distribution | C64: constant | D64: constant | E64: constant | F64: constant | G64: constant | H64: constant | I64: constant | J64: constant | K64: constant | L64: constant | M64: constant | N64: constant | O64: constant | P64: constant | Q64: constant | R64: constant
A65: Attenuation_Retardation_Species_2_param1
A66: Attenuation_Retardation_Species_2_param2
A67: Attenuation_Retardation_Species_2_param3
A70: Attenuation_Half_Life_Species_2 | B70: days | C70: 100 | D70: =C70 -> 100 | E70: =C70 -> 100 | F70: =C70 -> 100 | G70: No Decay | H70: No Decay | I70: No Decay | J70: No Decay | K70: No Decay | L70: No Decay | M70: No Decay | N70: No Decay | O70: No Decay | P70: No Decay | Q70: No Decay | R70: No Decay
A71: Distribution | C71: constant | D71: constant | E71: constant | F71: constant | G71: constant | H71: constant | I71: constant | J71: constant | K71: constant | L71: constant | M71: constant | N71: constant | O71: constant | P71: constant | Q71: constant | R71: constant
A72: Attenuation_Half_Life_Species_2_param1
A73: Attenuation_Half_Life_Species_2_param2
A74: Attenuation_Half_Life_Species_2_param3
A77: Attenuation_Decay_Coefficient_Species_2 | B77: 1/s | C77: =IF((_xlfn.SINGLE(Attenuation_Half_Life_Species_2))<>"No Decay", LN(2) / ((_xlfn.SINGLE(Attenuation_Half_Life_Species_2)) *_xlfn.SINGLE( s_per_day)),0) -> 8.022536812e-08 | D77: 8.022536812e-08 | E77: 8.022536812e-08 | F77: 8.022536812e-08 | G77: 0 | H77: 0 | I77: 0 | J77: 0 | K77: 0 | L77: 0 | M77: 0 | N77: 0 | O77: 0 | P77: 0 | Q77: 0 | R77: 0
A78: Distribution | C78: constant | D78: constant | E78: constant | F78: constant | G78: constant | H78: constant | I78: constant | J78: constant | K78: constant | L78: constant | M78: constant | N78: constant | O78: constant | P78: constant | Q78: constant | R78: constant
A79: Attenuation_Decay_Coefficient_Species_2_param1
A80: Attenuation_Decay_Coefficient_Species_2_param2
A81: Attenuation_Decay_Coefficient_Species_2_param3
A84: =IF((Contaminants_Source_determinand_names Contaminants_Species3)=0,"Undefined",(Contaminants_Source_determinand_names Contaminants_Species3)) -> Hg
A86: Attenuation_Partition_Coefficient_Kd_Species_3 | B86: L/kg | C86: 2143 | D86: =C86 -> 2143 | E86: =C86 -> 2143 | F86: =C86 -> 2143 | G86: =(Attenuation_Fraction_organic_carbon) * (Contaminants_Organic_Carbon_Water_Partition_Coefficient_Koc Contaminants_Species3) -> 0 | H86: =(Attenuation_Fraction_organic_carbon) * (Contaminants_Organic_Carbon_Water_Partition_Coefficient_Koc Contaminants_Species3) -> 0 | I86: =(Attenuation_Fraction_organic_carbon) * (Contaminants_Organic_Carbon_Water_Partition_Coefficient_Koc Contaminants_Species3) -> 0 | J86: =(Attenuation_Fraction_organic_carbon) * (Contaminants_Organic_Carbon_Water_Partition_Coefficient_Koc Contaminants_Species3) -> 0 | K86: =(Attenuation_Fraction_organic_carbon) * (Contaminants_Organic_Carbon_Water_Partition_Coefficient_Koc Contaminants_Species3) -> 0 | L86: =(Attenuation_Fraction_organic_carbon) * (Contaminants_Organic_Carbon_Water_Partition_Coefficient_Koc Contaminants_Species3) -> 0 | M86: =(Attenuation_Fraction_organic_carbon) * (Contaminants_Organic_Carbon_Water_Partition_Coefficient_Koc Contaminants_Species3) -> 0 | N86: =(Attenuation_Fraction_organic_carbon) * (Contaminants_Organic_Carbon_Water_Partition_Coefficient_Koc Contaminants_Species3) -> 0 | O86: =(Attenuation_Fraction_organic_carbon) * (Contaminants_Organic_Carbon_Water_Partition_Coefficient_Koc Contaminants_Species3) -> 0 | P86: =(Attenuation_Fraction_organic_carbon) * (Contaminants_Organic_Carbon_Water_Partition_Coefficient_Koc Contaminants_Species3) -> 0 | Q86: =(Attenuation_Fraction_organic_carbon) * (Contaminants_Organic_Carbon_Water_Partition_Coefficient_Koc Contaminants_Species3) -> 0 | R86: =(Attenuation_Fraction_organic_carbon) * (Contaminants_Organic_Carbon_Water_Partition_Coefficient_Koc Contaminants_Species3) -> 0
A87: Distribution | C87: constant | D87: constant | E87: constant | F87: constant | G87: constant | H87: constant | I87: constant | J87: constant | K87: constant | L87: constant | M87: constant | N87: constant | O87: constant | P87: constant | Q87: constant | R87: constant
A88: Attenuation_Partition_Coefficient_Kd_Species_3_param1
A89: Attenuation_Partition_Coefficient_Kd_Species_3_param2
A90: Attenuation_Partition_Coefficient_Kd_Species_3_param3
A93: Attenuation_Retardation_Species_3 | B93: [-] | C93: =1 + 0.001 * (Attenuation_Partition_Coefficient_Kd_Species_3) * (Attenuation_Dry_bulk_density) / (Hydrogeology_Porosity Hydrogeology!$C:$C) -> 38575 | D93: =1 + 0.001 * (Attenuation_Partition_Coefficient_Kd_Species_3) * (Attenuation_Dry_bulk_density) / (Hydrogeology_Porosity Hydrogeology!$D:$D) -> 38575 | E93: =1 + 0.001 * (Attenuation_Partition_Coefficient_Kd_Species_3) * (Attenuation_Dry_bulk_density) / (Hydrogeology_Porosity Hydrogeology!$E:$E) -> 385741 | F93: =1 + 0.001 * (Attenuation_Partition_Coefficient_Kd_Species_3) * (Attenuation_Dry_bulk_density) / (Hydrogeology_Porosity Hydrogeology!$F:$F) -> 38575 | G93: =1 + 0.001 * (Attenuation_Partition_Coefficient_Kd_Species_3) * (Attenuation_Dry_bulk_density) / (Hydrogeology_Porosity Hydrogeology!$G:$G) ->  | H93: =1 + 0.001 * (Attenuation_Partition_Coefficient_Kd_Species_3) * (Attenuation_Dry_bulk_density) / (Hydrogeology_Porosity Hydrogeology!$H:$H) ->  | I93: =1 + 0.001 * (Attenuation_Partition_Coefficient_Kd_Species_3) * (Attenuation_Dry_bulk_density) / (Hydrogeology_Porosity Hydrogeology!$I:$I) ->  | J93: =1 + 0.001 * (Attenuation_Partition_Coefficient_Kd_Species_3) * (Attenuation_Dry_bulk_density) / (Hydrogeology_Porosity Hydrogeology!$J:$J) ->  | K93: =1 + 0.001 * (Attenuation_Partition_Coefficient_Kd_Species_3) * (Attenuation_Dry_bulk_density) / (Hydrogeology_Porosity Hydrogeology!$K:$K) ->  | L93: =1 + 0.001 * (Attenuation_Partition_Coefficient_Kd_Species_3) * (Attenuation_Dry_bulk_density) / (Hydrogeology_Porosity Hydrogeology!$L:$L) ->  | M93: =1 + 0.001 * (Attenuation_Partition_Coefficient_Kd_Species_3) * (Attenuation_Dry_bulk_density) / (Hydrogeology_Porosity Hydrogeology!$M:$M) ->  | N93: =1 + 0.001 * (Attenuation_Partition_Coefficient_Kd_Species_3) * (Attenuation_Dry_bulk_density) / (Hydrogeology_Porosity Hydrogeology!$N:$N) ->  | O93: =1 + 0.001 * (Attenuation_Partition_Coefficient_Kd_Species_3) * (Attenuation_Dry_bulk_density) / (Hydrogeology_Porosity Hydrogeology!$O:$O) ->  | P93: =1 + 0.001 * (Attenuation_Partition_Coefficient_Kd_Species_3) * (Attenuation_Dry_bulk_density) / (Hydrogeology_Porosity Hydrogeology!$P:$P) ->  | Q93: =1 + 0.001 * (Attenuation_Partition_Coefficient_Kd_Species_3) * (Attenuation_Dry_bulk_density) / (Hydrogeology_Porosity Hydrogeology!$Q:$Q) ->  | R93: =1 + 0.001 * (Attenuation_Partition_Coefficient_Kd_Species_3) * (Attenuation_Dry_bulk_density) / (Hydrogeology_Porosity Hydrogeology!$R:$R) -> 
A94: Distribution | C94: constant | D94: constant | E94: constant | F94: constant | G94: constant | H94: constant | I94: constant | J94: constant | K94: constant | L94: constant | M94: constant | N94: constant | O94: constant | P94: constant | Q94: constant | R94: constant
A95: Attenuation_Retardation_Species_3_param1
A96: Attenuation_Retardation_Species_3_param2
A97: Attenuation_Retardation_Species_3_param3
A100: Attenuation_Half_Life_Species_3 | B100: days | C100: No Decay | D100: No Decay | E100: No Decay | F100: No Decay | G100: No Decay | H100: No Decay | I100: No Decay | J100: No Decay | K100: No Decay | L100: No Decay | M100: No Decay | N100: No Decay | O100: No Decay | P100: No Decay | Q100: No Decay | R100: No Decay
A101: Distribution | C101: constant | D101: constant | E101: constant | F101: constant | G101: constant | H101: constant | I101: constant | J101: constant | K101: constant | L101: constant | M101: constant | N101: constant | O101: constant | P101: constant | Q101: constant | R101: constant
A102: Attenuation_Half_Life_Species_3_param1
A103: Attenuation_Half_Life_Species_3_param2
A104: Attenuation_Half_Life_Species_3_param3
A107: Attenuation_Decay_Coefficient_Species_3 | B107: 1/s | C107: =IF((_xlfn.SINGLE(Attenuation_Half_Life_Species_3))<>"No Decay", LN(2) / ((_xlfn.SINGLE(Attenuation_Half_Life_Species_3)) *_xlfn.SINGLE( s_per_day)),0) -> 0 | D107: 0 | E107: 0 | F107: 0 | G107: 0 | H107: 0 | I107: 0 | J107: 0 | K107: 0 | L107: 0 | M107: 0 | N107: 0 | O107: 0 | P107: 0 | Q107: 0 | R107: 0
A108: Distribution | C108: constant | D108: constant | E108: constant | F108: constant | G108: constant | H108: constant | I108: constant | J108: constant | K108: constant | L108: constant | M108: constant | N108: constant | O108: constant | P108: constant | Q108: constant | R108: constant
A109: Attenuation_Decay_Coefficient_Species_3_param1
A110: Attenuation_Decay_Coefficient_Species_3_param2
A111: Attenuation_Decay_Coefficient_Species_3_param3
A114: =IF((Contaminants_Source_determinand_names Contaminants_Species4)=0,"Undefined",(Contaminants_Source_determinand_names Contaminants_Species4)) -> Pb
A116: Attenuation_Partition_Coefficient_Kd_Species_4 | B116: L/kg | C116: 135014 | D116: =C116 -> 135014 | E116: =C116 -> 135014 | F116: =C116 -> 135014 | G116: =(Attenuation_Fraction_organic_carbon) * (Contaminants_Organic_Carbon_Water_Partition_Coefficient_Koc Contaminants_Species4) -> 0 | H116: =(Attenuation_Fraction_organic_carbon) * (Contaminants_Organic_Carbon_Water_Partition_Coefficient_Koc Contaminants_Species4) -> 0 | I116: =(Attenuation_Fraction_organic_carbon) * (Contaminants_Organic_Carbon_Water_Partition_Coefficient_Koc Contaminants_Species4) -> 0 | J116: =(Attenuation_Fraction_organic_carbon) * (Contaminants_Organic_Carbon_Water_Partition_Coefficient_Koc Contaminants_Species4) -> 0 | K116: =(Attenuation_Fraction_organic_carbon) * (Contaminants_Organic_Carbon_Water_Partition_Coefficient_Koc Contaminants_Species4) -> 0 | L116: =(Attenuation_Fraction_organic_carbon) * (Contaminants_Organic_Carbon_Water_Partition_Coefficient_Koc Contaminants_Species4) -> 0 | M116: =(Attenuation_Fraction_organic_carbon) * (Contaminants_Organic_Carbon_Water_Partition_Coefficient_Koc Contaminants_Species4) -> 0 | N116: =(Attenuation_Fraction_organic_carbon) * (Contaminants_Organic_Carbon_Water_Partition_Coefficient_Koc Contaminants_Species4) -> 0 | O116: =(Attenuation_Fraction_organic_carbon) * (Contaminants_Organic_Carbon_Water_Partition_Coefficient_Koc Contaminants_Species4) -> 0 | P116: =(Attenuation_Fraction_organic_carbon) * (Contaminants_Organic_Carbon_Water_Partition_Coefficient_Koc Contaminants_Species4) -> 0 | Q116: =(Attenuation_Fraction_organic_carbon) * (Contaminants_Organic_Carbon_Water_Partition_Coefficient_Koc Contaminants_Species4) -> 0 | R116: =(Attenuation_Fraction_organic_carbon) * (Contaminants_Organic_Carbon_Water_Partition_Coefficient_Koc Contaminants_Species4) -> 0
A117: Distribution | C117: constant | D117: constant | E117: constant | F117: constant | G117: constant | H117: constant | I117: constant | J117: constant | K117: constant | L117: constant | M117: constant | N117: constant | O117: constant | P117: constant | Q117: constant | R117: constant
A118: Attenuation_Partition_Coefficient_Kd_Species_4_param1
A119: Attenuation_Partition_Coefficient_Kd_Species_4_param2
A120: Attenuation_Partition_Coefficient_Kd_Species_4_param3
A123: Attenuation_Retardation_Species_4 | B123: [-] | C123: =1 + 0.001 * (Attenuation_Partition_Coefficient_Kd_Species_4) * (Attenuation_Dry_bulk_density) / (Hydrogeology_Porosity Hydrogeology!$C:$C) -> 2430253 | D123: =1 + 0.001 * (Attenuation_Partition_Coefficient_Kd_Species_4) * (Attenuation_Dry_bulk_density) / (Hydrogeology_Porosity Hydrogeology!$D:$D) -> 2430253 | E123: =1 + 0.001 * (Attenuation_Partition_Coefficient_Kd_Species_4) * (Attenuation_Dry_bulk_density) / (Hydrogeology_Porosity Hydrogeology!$E:$E) -> 24302521 | F123: =1 + 0.001 * (Attenuation_Partition_Coefficient_Kd_Species_4) * (Attenuation_Dry_bulk_density) / (Hydrogeology_Porosity Hydrogeology!$F:$F) -> 2430253 | G123: =1 + 0.001 * (Attenuation_Partition_Coefficient_Kd_Species_4) * (Attenuation_Dry_bulk_density) / (Hydrogeology_Porosity Hydrogeology!$G:$G) ->  | H123: =1 + 0.001 * (Attenuation_Partition_Coefficient_Kd_Species_4) * (Attenuation_Dry_bulk_density) / (Hydrogeology_Porosity Hydrogeology!$H:$H) ->  | I123: =1 + 0.001 * (Attenuation_Partition_Coefficient_Kd_Species_4) * (Attenuation_Dry_bulk_density) / (Hydrogeology_Porosity Hydrogeology!$I:$I) ->  | J123: =1 + 0.001 * (Attenuation_Partition_Coefficient_Kd_Species_4) * (Attenuation_Dry_bulk_density) / (Hydrogeology_Porosity Hydrogeology!$J:$J) ->  | K123: =1 + 0.001 * (Attenuation_Partition_Coefficient_Kd_Species_4) * (Attenuation_Dry_bulk_density) / (Hydrogeology_Porosity Hydrogeology!$K:$K) ->  | L123: =1 + 0.001 * (Attenuation_Partition_Coefficient_Kd_Species_4) * (Attenuation_Dry_bulk_density) / (Hydrogeology_Porosity Hydrogeology!$L:$L) ->  | M123: =1 + 0.001 * (Attenuation_Partition_Coefficient_Kd_Species_4) * (Attenuation_Dry_bulk_density) / (Hydrogeology_Porosity Hydrogeology!$M:$M) ->  | N123: =1 + 0.001 * (Attenuation_Partition_Coefficient_Kd_Species_4) * (Attenuation_Dry_bulk_density) / (Hydrogeology_Porosity Hydrogeology!$N:$N) ->  | O123: =1 + 0.001 * (Attenuation_Partition_Coefficient_Kd_Species_4) * (Attenuation_Dry_bulk_density) / (Hydrogeology_Porosity Hydrogeology!$O:$O) ->  | P123: =1 + 0.001 * (Attenuation_Partition_Coefficient_Kd_Species_4) * (Attenuation_Dry_bulk_density) / (Hydrogeology_Porosity Hydrogeology!$P:$P) ->  | Q123: =1 + 0.001 * (Attenuation_Partition_Coefficient_Kd_Species_4) * (Attenuation_Dry_bulk_density) / (Hydrogeology_Porosity Hydrogeology!$Q:$Q) ->  | R123: =1 + 0.001 * (Attenuation_Partition_Coefficient_Kd_Species_4) * (Attenuation_Dry_bulk_density) / (Hydrogeology_Porosity Hydrogeology!$R:$R) -> 
A124: Distribution | C124: constant | D124: constant | E124: constant | F124: constant | G124: constant | H124: constant | I124: constant | J124: constant | K124: constant | L124: constant | M124: constant | N124: constant | O124: constant | P124: constant | Q124: constant | R124: constant
A125: Attenuation_Retardation_Species_4_param1
A126: Attenuation_Retardation_Species_4_param2
A127: Attenuation_Retardation_Species_4_param3
A130: Attenuation_Half_Life_Species_4 | B130: days | C130: No Decay | D130: No Decay | E130: No Decay | F130: No Decay | G130: No Decay | H130: No Decay | I130: No Decay | J130: No Decay | K130: No Decay | L130: No Decay | M130: No Decay | N130: No Decay | O130: No Decay | P130: No Decay | Q130: No Decay | R130: No Decay
A131: Distribution | C131: constant | D131: constant | E131: constant | F131: constant | G131: constant | H131: constant | I131: constant | J131: constant | K131: constant | L131: constant | M131: constant | N131: constant | O131: constant | P131: constant | Q131: constant | R131: constant
A132: Attenuation_Half_Life_Species_4_param1
A133: Attenuation_Half_Life_Species_4_param2
A134: Attenuation_Half_Life_Species_4_param3
A137: Attenuation_Decay_Coefficient_Species_4 | B137: 1/s | C137: =IF((_xlfn.SINGLE(Attenuation_Half_Life_Species_4))<>"No Decay", LN(2) / ((_xlfn.SINGLE(Attenuation_Half_Life_Species_4)) *_xlfn.SINGLE( s_per_day)),0) -> 0 | D137: 0 | E137: 0 | F137: 0 | G137: 0 | H137: 0 | I137: 0 | J137: 0 | K137: 0 | L137: 0 | M137: 0 | N137: 0 | O137: 0 | P137: 0 | Q137: 0 | R137: 0
A138: Distribution | C138: constant | D138: constant | E138: constant | F138: constant | G138: constant | H138: constant | I138: constant | J138: constant | K138: constant | L138: constant | M138: constant | N138: constant | O138: constant | P138: constant | Q138: constant | R138: constant
A139: Attenuation_Decay_Coefficient_Species_4_param1
A140: Attenuation_Decay_Coefficient_Species_4_param2
A141: Attenuation_Decay_Coefficient_Species_4_param3
A144: =IF((Contaminants_Source_determinand_names Contaminants_Species5)=0,"Undefined",(Contaminants_Source_determinand_names Contaminants_Species5)) -> Undefined
A146: Attenuation_Partition_Coefficient_Kd_Species_5 | B146: L/kg | C146: =(Attenuation_Fraction_organic_carbon) * (Contaminants_Organic_Carbon_Water_Partition_Coefficient_Koc Contaminants_Species5) -> 0 | D146: =(Attenuation_Fraction_organic_carbon) * (Contaminants_Organic_Carbon_Water_Partition_Coefficient_Koc Contaminants_Species5) -> 0 | E146: =(Attenuation_Fraction_organic_carbon) * (Contaminants_Organic_Carbon_Water_Partition_Coefficient_Koc Contaminants_Species5) -> 0 | F146: =(Attenuation_Fraction_organic_carbon) * (Contaminants_Organic_Carbon_Water_Partition_Coefficient_Koc Contaminants_Species5) -> 0 | G146: =(Attenuation_Fraction_organic_carbon) * (Contaminants_Organic_Carbon_Water_Partition_Coefficient_Koc Contaminants_Species5) -> 0 | H146: =(Attenuation_Fraction_organic_carbon) * (Contaminants_Organic_Carbon_Water_Partition_Coefficient_Koc Contaminants_Species5) -> 0 | I146: =(Attenuation_Fraction_organic_carbon) * (Contaminants_Organic_Carbon_Water_Partition_Coefficient_Koc Contaminants_Species5) -> 0 | J146: =(Attenuation_Fraction_organic_carbon) * (Contaminants_Organic_Carbon_Water_Partition_Coefficient_Koc Contaminants_Species5) -> 0 | K146: =(Attenuation_Fraction_organic_carbon) * (Contaminants_Organic_Carbon_Water_Partition_Coefficient_Koc Contaminants_Species5) -> 0 | L146: =(Attenuation_Fraction_organic_carbon) * (Contaminants_Organic_Carbon_Water_Partition_Coefficient_Koc Contaminants_Species5) -> 0 | M146: =(Attenuation_Fraction_organic_carbon) * (Contaminants_Organic_Carbon_Water_Partition_Coefficient_Koc Contaminants_Species5) -> 0 | N146: =(Attenuation_Fraction_organic_carbon) * (Contaminants_Organic_Carbon_Water_Partition_Coefficient_Koc Contaminants_Species5) -> 0 | O146: =(Attenuation_Fraction_organic_carbon) * (Contaminants_Organic_Carbon_Water_Partition_Coefficient_Koc Contaminants_Species5) -> 0 | P146: =(Attenuation_Fraction_organic_carbon) * (Contaminants_Organic_Carbon_Water_Partition_Coefficient_Koc Contaminants_Species5) -> 0 | Q146: =(Attenuation_Fraction_organic_carbon) * (Contaminants_Organic_Carbon_Water_Partition_Coefficient_Koc Contaminants_Species5) -> 0 | R146: =(Attenuation_Fraction_organic_carbon) * (Contaminants_Organic_Carbon_Water_Partition_Coefficient_Koc Contaminants_Species5) -> 0
A147: Distribution | C147: constant | D147: constant | E147: constant | F147: constant | G147: constant | H147: constant | I147: constant | J147: constant | K147: constant | L147: constant | M147: constant | N147: constant | O147: constant | P147: constant | Q147: constant | R147: constant
A148: Attenuation_Partition_Coefficient_Kd_Species_5_param1
A149: Attenuation_Partition_Coefficient_Kd_Species_5_param2
A150: Attenuation_Partition_Coefficient_Kd_Species_5_param3
A153: Attenuation_Retardation_Species_5 | B153: [-] | C153: =1 + 0.001 * (Attenuation_Partition_Coefficient_Kd_Species_5) * (Attenuation_Dry_bulk_density) / (Hydrogeology_Porosity Hydrogeology!$C:$C) -> 1 | D153: =1 + 0.001 * (Attenuation_Partition_Coefficient_Kd_Species_5) * (Attenuation_Dry_bulk_density) / (Hydrogeology_Porosity Hydrogeology!$D:$D) -> 1 | E153: =1 + 0.001 * (Attenuation_Partition_Coefficient_Kd_Species_5) * (Attenuation_Dry_bulk_density) / (Hydrogeology_Porosity Hydrogeology!$E:$E) -> 1 | F153: =1 + 0.001 * (Attenuation_Partition_Coefficient_Kd_Species_5) * (Attenuation_Dry_bulk_density) / (Hydrogeology_Porosity Hydrogeology!$F:$F) -> 1 | G153: =1 + 0.001 * (Attenuation_Partition_Coefficient_Kd_Species_5) * (Attenuation_Dry_bulk_density) / (Hydrogeology_Porosity Hydrogeology!$G:$G) ->  | H153: =1 + 0.001 * (Attenuation_Partition_Coefficient_Kd_Species_5) * (Attenuation_Dry_bulk_density) / (Hydrogeology_Porosity Hydrogeology!$H:$H) ->  | I153: =1 + 0.001 * (Attenuation_Partition_Coefficient_Kd_Species_5) * (Attenuation_Dry_bulk_density) / (Hydrogeology_Porosity Hydrogeology!$I:$I) ->  | J153: =1 + 0.001 * (Attenuation_Partition_Coefficient_Kd_Species_5) * (Attenuation_Dry_bulk_density) / (Hydrogeology_Porosity Hydrogeology!$J:$J) ->  | K153: =1 + 0.001 * (Attenuation_Partition_Coefficient_Kd_Species_5) * (Attenuation_Dry_bulk_density) / (Hydrogeology_Porosity Hydrogeology!$K:$K) ->  | L153: =1 + 0.001 * (Attenuation_Partition_Coefficient_Kd_Species_5) * (Attenuation_Dry_bulk_density) / (Hydrogeology_Porosity Hydrogeology!$L:$L) ->  | M153: =1 + 0.001 * (Attenuation_Partition_Coefficient_Kd_Species_5) * (Attenuation_Dry_bulk_density) / (Hydrogeology_Porosity Hydrogeology!$M:$M) ->  | N153: =1 + 0.001 * (Attenuation_Partition_Coefficient_Kd_Species_5) * (Attenuation_Dry_bulk_density) / (Hydrogeology_Porosity Hydrogeology!$N:$N) ->  | O153: =1 + 0.001 * (Attenuation_Partition_Coefficient_Kd_Species_5) * (Attenuation_Dry_bulk_density) / (Hydrogeology_Porosity Hydrogeology!$O:$O) ->  | P153: =1 + 0.001 * (Attenuation_Partition_Coefficient_Kd_Species_5) * (Attenuation_Dry_bulk_density) / (Hydrogeology_Porosity Hydrogeology!$P:$P) ->  | Q153: =1 + 0.001 * (Attenuation_Partition_Coefficient_Kd_Species_5) * (Attenuation_Dry_bulk_density) / (Hydrogeology_Porosity Hydrogeology!$Q:$Q) ->  | R153: =1 + 0.001 * (Attenuation_Partition_Coefficient_Kd_Species_5) * (Attenuation_Dry_bulk_density) / (Hydrogeology_Porosity Hydrogeology!$R:$R) -> 
A154: Distribution | C154: constant | D154: constant | E154: constant | F154: constant | G154: constant | H154: constant | I154: constant | J154: constant | K154: constant | L154: constant | M154: constant | N154: constant | O154: constant | P154: constant | Q154: constant | R154: constant
A155: Attenuation_Retardation_Species_5_param1
A156: Attenuation_Retardation_Species_5_param2
A157: Attenuation_Retardation_Species_5_param3
A160: Attenuation_Half_Life_Species_5 | B160: days | C160: No Decay | D160: No Decay | E160: No Decay | F160: No Decay | G160: No Decay | H160: No Decay | I160: No Decay | J160: No Decay | K160: No Decay | L160: No Decay | M160: No Decay | N160: No Decay | O160: No Decay | P160: No Decay | Q160: No Decay | R160: No Decay
A161: Distribution | C161: constant | D161: constant | E161: constant | F161: constant | G161: constant | H161: constant | I161: constant | J161: constant | K161: constant | L161: constant | M161: constant | N161: constant | O161: constant | P161: constant | Q161: constant | R161: constant
A162: Attenuation_Half_Life_Species_5_param1
A163: Attenuation_Half_Life_Species_5_param2
A164: Attenuation_Half_Life_Species_5_param3
A167: Attenuation_Decay_Coefficient_Species_5 | B167: 1/s | C167: =IF((_xlfn.SINGLE(Attenuation_Half_Life_Species_5))<>"No Decay", LN(2) / ((_xlfn.SINGLE(Attenuation_Half_Life_Species_5)) *_xlfn.SINGLE( s_per_day)),0) -> 0 | D167: 0 | E167: 0 | F167: 0 | G167: 0 | H167: 0 | I167: 0 | J167: 0 | K167: 0 | L167: 0 | M167: 0 | N167: 0 | O167: 0 | P167: 0 | Q167: 0 | R167: 0
A168: Distribution | C168: constant | D168: constant | E168: constant | F168: constant | G168: constant | H168: constant | I168: constant | J168: constant | K168: constant | L168: constant | M168: constant | N168: constant | O168: constant | P168: constant | Q168: constant | R168: constant
A169: Attenuation_Decay_Coefficient_Species_5_param1
A170: Attenuation_Decay_Coefficient_Species_5_param2
A171: Attenuation_Decay_Coefficient_Species_5_param3
A174: =IF((Contaminants_Source_determinand_names Contaminants_Species6)=0,"Undefined",(Contaminants_Source_determinand_names Contaminants_Species6)) -> Undefined
A176: Attenuation_Partition_Coefficient_Kd_Species_6 | B176: L/kg | C176: =(Attenuation_Fraction_organic_carbon) * (Contaminants_Organic_Carbon_Water_Partition_Coefficient_Koc Contaminants_Species6) -> 0 | D176: =(Attenuation_Fraction_organic_carbon) * (Contaminants_Organic_Carbon_Water_Partition_Coefficient_Koc Contaminants_Species6) -> 0 | E176: =(Attenuation_Fraction_organic_carbon) * (Contaminants_Organic_Carbon_Water_Partition_Coefficient_Koc Contaminants_Species6) -> 0 | F176: =(Attenuation_Fraction_organic_carbon) * (Contaminants_Organic_Carbon_Water_Partition_Coefficient_Koc Contaminants_Species6) -> 0 | G176: =(Attenuation_Fraction_organic_carbon) * (Contaminants_Organic_Carbon_Water_Partition_Coefficient_Koc Contaminants_Species6) -> 0 | H176: =(Attenuation_Fraction_organic_carbon) * (Contaminants_Organic_Carbon_Water_Partition_Coefficient_Koc Contaminants_Species6) -> 0 | I176: =(Attenuation_Fraction_organic_carbon) * (Contaminants_Organic_Carbon_Water_Partition_Coefficient_Koc Contaminants_Species6) -> 0 | J176: =(Attenuation_Fraction_organic_carbon) * (Contaminants_Organic_Carbon_Water_Partition_Coefficient_Koc Contaminants_Species6) -> 0 | K176: =(Attenuation_Fraction_organic_carbon) * (Contaminants_Organic_Carbon_Water_Partition_Coefficient_Koc Contaminants_Species6) -> 0 | L176: =(Attenuation_Fraction_organic_carbon) * (Contaminants_Organic_Carbon_Water_Partition_Coefficient_Koc Contaminants_Species6) -> 0 | M176: =(Attenuation_Fraction_organic_carbon) * (Contaminants_Organic_Carbon_Water_Partition_Coefficient_Koc Contaminants_Species6) -> 0 | N176: =(Attenuation_Fraction_organic_carbon) * (Contaminants_Organic_Carbon_Water_Partition_Coefficient_Koc Contaminants_Species6) -> 0 | O176: =(Attenuation_Fraction_organic_carbon) * (Contaminants_Organic_Carbon_Water_Partition_Coefficient_Koc Contaminants_Species6) -> 0 | P176: =(Attenuation_Fraction_organic_carbon) * (Contaminants_Organic_Carbon_Water_Partition_Coefficient_Koc Contaminants_Species6) -> 0 | Q176: =(Attenuation_Fraction_organic_carbon) * (Contaminants_Organic_Carbon_Water_Partition_Coefficient_Koc Contaminants_Species6) -> 0 | R176: =(Attenuation_Fraction_organic_carbon) * (Contaminants_Organic_Carbon_Water_Partition_Coefficient_Koc Contaminants_Species6) -> 0
A177: Distribution | C177: constant | D177: constant | E177: constant | F177: constant | G177: constant | H177: constant | I177: constant | J177: constant | K177: constant | L177: constant | M177: constant | N177: constant | O177: constant | P177: constant | Q177: constant | R177: constant
A178: Attenuation_Partition_Coefficient_Kd_Species_6_param1
A179: Attenuation_Partition_Coefficient_Kd_Species_6_param2
A180: Attenuation_Partition_Coefficient_Kd_Species_6_param3
A183: Attenuation_Retardation_Species_6 | B183: [-] | C183: =1 + 0.001 * (Attenuation_Partition_Coefficient_Kd_Species_6) * (Attenuation_Dry_bulk_density) / (Hydrogeology_Porosity Hydrogeology!$C:$C) -> 1 | D183: =1 + 0.001 * (Attenuation_Partition_Coefficient_Kd_Species_6) * (Attenuation_Dry_bulk_density) / (Hydrogeology_Porosity Hydrogeology!$D:$D) -> 1 | E183: =1 + 0.001 * (Attenuation_Partition_Coefficient_Kd_Species_6) * (Attenuation_Dry_bulk_density) / (Hydrogeology_Porosity Hydrogeology!$E:$E) -> 1 | F183: =1 + 0.001 * (Attenuation_Partition_Coefficient_Kd_Species_6) * (Attenuation_Dry_bulk_density) / (Hydrogeology_Porosity Hydrogeology!$F:$F) -> 1 | G183: =1 + 0.001 * (Attenuation_Partition_Coefficient_Kd_Species_6) * (Attenuation_Dry_bulk_density) / (Hydrogeology_Porosity Hydrogeology!$G:$G) ->  | H183: =1 + 0.001 * (Attenuation_Partition_Coefficient_Kd_Species_6) * (Attenuation_Dry_bulk_density) / (Hydrogeology_Porosity Hydrogeology!$H:$H) ->  | I183: =1 + 0.001 * (Attenuation_Partition_Coefficient_Kd_Species_6) * (Attenuation_Dry_bulk_density) / (Hydrogeology_Porosity Hydrogeology!$I:$I) ->  | J183: =1 + 0.001 * (Attenuation_Partition_Coefficient_Kd_Species_6) * (Attenuation_Dry_bulk_density) / (Hydrogeology_Porosity Hydrogeology!$J:$J) ->  | K183: =1 + 0.001 * (Attenuation_Partition_Coefficient_Kd_Species_6) * (Attenuation_Dry_bulk_density) / (Hydrogeology_Porosity Hydrogeology!$K:$K) ->  | L183: =1 + 0.001 * (Attenuation_Partition_Coefficient_Kd_Species_6) * (Attenuation_Dry_bulk_density) / (Hydrogeology_Porosity Hydrogeology!$L:$L) ->  | M183: =1 + 0.001 * (Attenuation_Partition_Coefficient_Kd_Species_6) * (Attenuation_Dry_bulk_density) / (Hydrogeology_Porosity Hydrogeology!$M:$M) ->  | N183: =1 + 0.001 * (Attenuation_Partition_Coefficient_Kd_Species_6) * (Attenuation_Dry_bulk_density) / (Hydrogeology_Porosity Hydrogeology!$N:$N) ->  | O183: =1 + 0.001 * (Attenuation_Partition_Coefficient_Kd_Species_6) * (Attenuation_Dry_bulk_density) / (Hydrogeology_Porosity Hydrogeology!$O:$O) ->  | P183: =1 + 0.001 * (Attenuation_Partition_Coefficient_Kd_Species_6) * (Attenuation_Dry_bulk_density) / (Hydrogeology_Porosity Hydrogeology!$P:$P) ->  | Q183: =1 + 0.001 * (Attenuation_Partition_Coefficient_Kd_Species_6) * (Attenuation_Dry_bulk_density) / (Hydrogeology_Porosity Hydrogeology!$Q:$Q) ->  | R183: =1 + 0.001 * (Attenuation_Partition_Coefficient_Kd_Species_6) * (Attenuation_Dry_bulk_density) / (Hydrogeology_Porosity Hydrogeology!$R:$R) -> 
A184: Distribution | C184: constant | D184: constant | E184: constant | F184: constant | G184: constant | H184: constant | I184: constant | J184: constant | K184: constant | L184: constant | M184: constant | N184: constant | O184: constant | P184: constant | Q184: constant | R184: constant
A185: Attenuation_Retardation_Species_6_param1
A186: Attenuation_Retardation_Species_6_param2
A187: Attenuation_Retardation_Species_6_param3
A190: Attenuation_Half_Life_Species_6 | B190: days | C190: No Decay | D190: No Decay | E190: No Decay | F190: No Decay | G190: No Decay | H190: No Decay | I190: No Decay | J190: No Decay | K190: No Decay | L190: No Decay | M190: No Decay | N190: No Decay | O190: No Decay | P190: No Decay | Q190: No Decay | R190: No Decay
A191: Distribution | C191: constant | D191: constant | E191: constant | F191: constant | G191: constant | H191: constant | I191: constant | J191: constant | K191: constant | L191: constant | M191: constant | N191: constant | O191: constant | P191: constant | Q191: constant | R191: constant
A192: Attenuation_Half_Life_Species_6_param1
A193: Attenuation_Half_Life_Species_6_param2
A194: Attenuation_Half_Life_Species_6_param3
A197: Attenuation_Decay_Coefficient_Species_6 | B197: 1/s | C197: =IF((_xlfn.SINGLE(Attenuation_Half_Life_Species_6))<>"No Decay", LN(2) / ((_xlfn.SINGLE(Attenuation_Half_Life_Species_6)) *_xlfn.SINGLE( s_per_day)),0) -> 0 | D197: 0 | E197: 0 | F197: 0 | G197: 0 | H197: 0 | I197: 0 | J197: 0 | K197: 0 | L197: 0 | M197: 0 | N197: 0 | O197: 0 | P197: 0 | Q197: 0 | R197: 0
A198: Distribution | C198: constant | D198: constant | E198: constant | F198: constant | G198: constant | H198: constant | I198: constant | J198: constant | K198: constant | L198: constant | M198: constant | N198: constant | O198: constant | P198: constant | Q198: constant | R198: constant
A199: Attenuation_Decay_Coefficient_Species_6_param1
A200: Attenuation_Decay_Coefficient_Species_6_param2
A201: Attenuation_Decay_Coefficient_Species_6_param3
A204: =IF((Contaminants_Source_determinand_names Contaminants_Species7)=0,"Undefined",(Contaminants_Source_determinand_names Contaminants_Species7)) -> Undefined
A206: Attenuation_Partition_Coefficient_Kd_Species_7 | B206: L/kg | C206: =(Attenuation_Fraction_organic_carbon) * (Contaminants_Organic_Carbon_Water_Partition_Coefficient_Koc Contaminants_Species7) -> 0 | D206: =(Attenuation_Fraction_organic_carbon) * (Contaminants_Organic_Carbon_Water_Partition_Coefficient_Koc Contaminants_Species7) -> 0 | E206: =(Attenuation_Fraction_organic_carbon) * (Contaminants_Organic_Carbon_Water_Partition_Coefficient_Koc Contaminants_Species7) -> 0 | F206: =(Attenuation_Fraction_organic_carbon) * (Contaminants_Organic_Carbon_Water_Partition_Coefficient_Koc Contaminants_Species7) -> 0 | G206: =(Attenuation_Fraction_organic_carbon) * (Contaminants_Organic_Carbon_Water_Partition_Coefficient_Koc Contaminants_Species7) -> 0 | H206: =(Attenuation_Fraction_organic_carbon) * (Contaminants_Organic_Carbon_Water_Partition_Coefficient_Koc Contaminants_Species7) -> 0 | I206: =(Attenuation_Fraction_organic_carbon) * (Contaminants_Organic_Carbon_Water_Partition_Coefficient_Koc Contaminants_Species7) -> 0 | J206: =(Attenuation_Fraction_organic_carbon) * (Contaminants_Organic_Carbon_Water_Partition_Coefficient_Koc Contaminants_Species7) -> 0 | K206: =(Attenuation_Fraction_organic_carbon) * (Contaminants_Organic_Carbon_Water_Partition_Coefficient_Koc Contaminants_Species7) -> 0 | L206: =(Attenuation_Fraction_organic_carbon) * (Contaminants_Organic_Carbon_Water_Partition_Coefficient_Koc Contaminants_Species7) -> 0 | M206: =(Attenuation_Fraction_organic_carbon) * (Contaminants_Organic_Carbon_Water_Partition_Coefficient_Koc Contaminants_Species7) -> 0 | N206: =(Attenuation_Fraction_organic_carbon) * (Contaminants_Organic_Carbon_Water_Partition_Coefficient_Koc Contaminants_Species7) -> 0 | O206: =(Attenuation_Fraction_organic_carbon) * (Contaminants_Organic_Carbon_Water_Partition_Coefficient_Koc Contaminants_Species7) -> 0 | P206: =(Attenuation_Fraction_organic_carbon) * (Contaminants_Organic_Carbon_Water_Partition_Coefficient_Koc Contaminants_Species7) -> 0 | Q206: =(Attenuation_Fraction_organic_carbon) * (Contaminants_Organic_Carbon_Water_Partition_Coefficient_Koc Contaminants_Species7) -> 0 | R206: =(Attenuation_Fraction_organic_carbon) * (Contaminants_Organic_Carbon_Water_Partition_Coefficient_Koc Contaminants_Species7) -> 0
A207: Distribution | C207: constant | D207: constant | E207: constant | F207: constant | G207: constant | H207: constant | I207: constant | J207: constant | K207: constant | L207: constant | M207: constant | N207: constant | O207: constant | P207: constant | Q207: constant | R207: constant
A208: Attenuation_Partition_Coefficient_Kd_Species_7_param1
A209: Attenuation_Partition_Coefficient_Kd_Species_7_param2
A210: Attenuation_Partition_Coefficient_Kd_Species_7_param3
A213: Attenuation_Retardation_Species_7 | B213: [-] | C213: =1 + 0.001 * (Attenuation_Partition_Coefficient_Kd_Species_7) * (Attenuation_Dry_bulk_density) / (Hydrogeology_Porosity Hydrogeology!$C:$C) -> 1 | D213: =1 + 0.001 * (Attenuation_Partition_Coefficient_Kd_Species_7) * (Attenuation_Dry_bulk_density) / (Hydrogeology_Porosity Hydrogeology!$D:$D) -> 1 | E213: =1 + 0.001 * (Attenuation_Partition_Coefficient_Kd_Species_7) * (Attenuation_Dry_bulk_density) / (Hydrogeology_Porosity Hydrogeology!$E:$E) -> 1 | F213: =1 + 0.001 * (Attenuation_Partition_Coefficient_Kd_Species_7) * (Attenuation_Dry_bulk_density) / (Hydrogeology_Porosity Hydrogeology!$F:$F) -> 1 | G213: =1 + 0.001 * (Attenuation_Partition_Coefficient_Kd_Species_7) * (Attenuation_Dry_bulk_density) / (Hydrogeology_Porosity Hydrogeology!$G:$G) ->  | H213: =1 + 0.001 * (Attenuation_Partition_Coefficient_Kd_Species_7) * (Attenuation_Dry_bulk_density) / (Hydrogeology_Porosity Hydrogeology!$H:$H) ->  | I213: =1 + 0.001 * (Attenuation_Partition_Coefficient_Kd_Species_7) * (Attenuation_Dry_bulk_density) / (Hydrogeology_Porosity Hydrogeology!$I:$I) ->  | J213: =1 + 0.001 * (Attenuation_Partition_Coefficient_Kd_Species_7) * (Attenuation_Dry_bulk_density) / (Hydrogeology_Porosity Hydrogeology!$J:$J) ->  | K213: =1 + 0.001 * (Attenuation_Partition_Coefficient_Kd_Species_7) * (Attenuation_Dry_bulk_density) / (Hydrogeology_Porosity Hydrogeology!$K:$K) ->  | L213: =1 + 0.001 * (Attenuation_Partition_Coefficient_Kd_Species_7) * (Attenuation_Dry_bulk_density) / (Hydrogeology_Porosity Hydrogeology!$L:$L) ->  | M213: =1 + 0.001 * (Attenuation_Partition_Coefficient_Kd_Species_7) * (Attenuation_Dry_bulk_density) / (Hydrogeology_Porosity Hydrogeology!$M:$M) ->  | N213: =1 + 0.001 * (Attenuation_Partition_Coefficient_Kd_Species_7) * (Attenuation_Dry_bulk_density) / (Hydrogeology_Porosity Hydrogeology!$N:$N) ->  | O213: =1 + 0.001 * (Attenuation_Partition_Coefficient_Kd_Species_7) * (Attenuation_Dry_bulk_density) / (Hydrogeology_Porosity Hydrogeology!$O:$O) ->  | P213: =1 + 0.001 * (Attenuation_Partition_Coefficient_Kd_Species_7) * (Attenuation_Dry_bulk_density) / (Hydrogeology_Porosity Hydrogeology!$P:$P) ->  | Q213: =1 + 0.001 * (Attenuation_Partition_Coefficient_Kd_Species_7) * (Attenuation_Dry_bulk_density) / (Hydrogeology_Porosity Hydrogeology!$Q:$Q) ->  | R213: =1 + 0.001 * (Attenuation_Partition_Coefficient_Kd_Species_7) * (Attenuation_Dry_bulk_density) / (Hydrogeology_Porosity Hydrogeology!$R:$R) -> 
A214: Distribution | C214: constant | D214: constant | E214: constant | F214: constant | G214: constant | H214: constant | I214: constant | J214: constant | K214: constant | L214: constant | M214: constant | N214: constant | O214: constant | P214: constant | Q214: constant | R214: constant
A215: Attenuation_Retardation_Species_7_param1
A216: Attenuation_Retardation_Species_7_param2
A217: Attenuation_Retardation_Species_7_param3
A220: Attenuation_Half_Life_Species_7 | B220: days | C220: No Decay | D220: No Decay | E220: No Decay | F220: No Decay | G220: No Decay | H220: No Decay | I220: No Decay | J220: No Decay | K220: No Decay | L220: No Decay | M220: No Decay | N220: No Decay | O220: No Decay | P220: No Decay | Q220: No Decay | R220: No Decay
A221: Distribution | C221: constant | D221: constant | E221: constant | F221: constant | G221: constant | H221: constant | I221: constant | J221: constant | K221: constant | L221: constant | M221: constant | N221: constant | O221: constant | P221: constant | Q221: constant | R221: constant
A222: Attenuation_Half_Life_Species_7_param1
A223: Attenuation_Half_Life_Species_7_param2
A224: Attenuation_Half_Life_Species_7_param3
A227: Attenuation_Decay_Coefficient_Species_7 | B227: 1/s | C227: =IF((_xlfn.SINGLE(Attenuation_Half_Life_Species_7))<>"No Decay", LN(2) / ((_xlfn.SINGLE(Attenuation_Half_Life_Species_7)) *_xlfn.SINGLE( s_per_day)),0) -> 0 | D227: 0 | E227: 0 | F227: 0 | G227: 0 | H227: 0 | I227: 0 | J227: 0 | K227: 0 | L227: 0 | M227: 0 | N227: 0 | O227: 0 | P227: 0 | Q227: 0 | R227: 0
A228: Distribution | C228: constant | D228: constant | E228: constant | F228: constant | G228: constant | H228: constant | I228: constant | J228: constant | K228: constant | L228: constant | M228: constant | N228: constant | O228: constant | P228: constant | Q228: constant | R228: constant
A229: Attenuation_Decay_Coefficient_Species_7_param1
A230: Attenuation_Decay_Coefficient_Species_7_param2
A231: Attenuation_Decay_Coefficient_Species_7_param3
A234: =IF((Contaminants_Source_determinand_names Contaminants_Species8)=0,"Undefined",(Contaminants_Source_determinand_names Contaminants_Species8)) -> Undefined
A236: Attenuation_Partition_Coefficient_Kd_Species_8 | B236: L/kg | C236: =(Attenuation_Fraction_organic_carbon) * (Contaminants_Organic_Carbon_Water_Partition_Coefficient_Koc Contaminants_Species8) -> 0 | D236: =(Attenuation_Fraction_organic_carbon) * (Contaminants_Organic_Carbon_Water_Partition_Coefficient_Koc Contaminants_Species8) -> 0 | E236: =(Attenuation_Fraction_organic_carbon) * (Contaminants_Organic_Carbon_Water_Partition_Coefficient_Koc Contaminants_Species8) -> 0 | F236: =(Attenuation_Fraction_organic_carbon) * (Contaminants_Organic_Carbon_Water_Partition_Coefficient_Koc Contaminants_Species8) -> 0 | G236: =(Attenuation_Fraction_organic_carbon) * (Contaminants_Organic_Carbon_Water_Partition_Coefficient_Koc Contaminants_Species8) -> 0 | H236: =(Attenuation_Fraction_organic_carbon) * (Contaminants_Organic_Carbon_Water_Partition_Coefficient_Koc Contaminants_Species8) -> 0 | I236: =(Attenuation_Fraction_organic_carbon) * (Contaminants_Organic_Carbon_Water_Partition_Coefficient_Koc Contaminants_Species8) -> 0 | J236: =(Attenuation_Fraction_organic_carbon) * (Contaminants_Organic_Carbon_Water_Partition_Coefficient_Koc Contaminants_Species8) -> 0 | K236: =(Attenuation_Fraction_organic_carbon) * (Contaminants_Organic_Carbon_Water_Partition_Coefficient_Koc Contaminants_Species8) -> 0 | L236: =(Attenuation_Fraction_organic_carbon) * (Contaminants_Organic_Carbon_Water_Partition_Coefficient_Koc Contaminants_Species8) -> 0 | M236: =(Attenuation_Fraction_organic_carbon) * (Contaminants_Organic_Carbon_Water_Partition_Coefficient_Koc Contaminants_Species8) -> 0 | N236: =(Attenuation_Fraction_organic_carbon) * (Contaminants_Organic_Carbon_Water_Partition_Coefficient_Koc Contaminants_Species8) -> 0 | O236: =(Attenuation_Fraction_organic_carbon) * (Contaminants_Organic_Carbon_Water_Partition_Coefficient_Koc Contaminants_Species8) -> 0 | P236: =(Attenuation_Fraction_organic_carbon) * (Contaminants_Organic_Carbon_Water_Partition_Coefficient_Koc Contaminants_Species8) -> 0 | Q236: =(Attenuation_Fraction_organic_carbon) * (Contaminants_Organic_Carbon_Water_Partition_Coefficient_Koc Contaminants_Species8) -> 0 | R236: =(Attenuation_Fraction_organic_carbon) * (Contaminants_Organic_Carbon_Water_Partition_Coefficient_Koc Contaminants_Species8) -> 0
A237: Distribution | C237: constant | D237: constant | E237: constant | F237: constant | G237: constant | H237: constant | I237: constant | J237: constant | K237: constant | L237: constant | M237: constant | N237: constant | O237: constant | P237: constant | Q237: constant | R237: constant
A238: Attenuation_Partition_Coefficient_Kd_Species_8_param1
A239: Attenuation_Partition_Coefficient_Kd_Species_8_param2
A240: Attenuation_Partition_Coefficient_Kd_Species_8_param3
A243: Attenuation_Retardation_Species_8 | B243: [-] | C243: =1 + 0.001 * (Attenuation_Partition_Coefficient_Kd_Species_8) * (Attenuation_Dry_bulk_density) / (Hydrogeology_Porosity Hydrogeology!$C:$C) -> 1 | D243: =1 + 0.001 * (Attenuation_Partition_Coefficient_Kd_Species_8) * (Attenuation_Dry_bulk_density) / (Hydrogeology_Porosity Hydrogeology!$D:$D) -> 1 | E243: =1 + 0.001 * (Attenuation_Partition_Coefficient_Kd_Species_8) * (Attenuation_Dry_bulk_density) / (Hydrogeology_Porosity Hydrogeology!$E:$E) -> 1 | F243: =1 + 0.001 * (Attenuation_Partition_Coefficient_Kd_Species_8) * (Attenuation_Dry_bulk_density) / (Hydrogeology_Porosity Hydrogeology!$F:$F) -> 1 | G243: =1 + 0.001 * (Attenuation_Partition_Coefficient_Kd_Species_8) * (Attenuation_Dry_bulk_density) / (Hydrogeology_Porosity Hydrogeology!$G:$G) ->  | H243: =1 + 0.001 * (Attenuation_Partition_Coefficient_Kd_Species_8) * (Attenuation_Dry_bulk_density) / (Hydrogeology_Porosity Hydrogeology!$H:$H) ->  | I243: =1 + 0.001 * (Attenuation_Partition_Coefficient_Kd_Species_8) * (Attenuation_Dry_bulk_density) / (Hydrogeology_Porosity Hydrogeology!$I:$I) ->  | J243: =1 + 0.001 * (Attenuation_Partition_Coefficient_Kd_Species_8) * (Attenuation_Dry_bulk_density) / (Hydrogeology_Porosity Hydrogeology!$J:$J) ->  | K243: =1 + 0.001 * (Attenuation_Partition_Coefficient_Kd_Species_8) * (Attenuation_Dry_bulk_density) / (Hydrogeology_Porosity Hydrogeology!$K:$K) ->  | L243: =1 + 0.001 * (Attenuation_Partition_Coefficient_Kd_Species_8) * (Attenuation_Dry_bulk_density) / (Hydrogeology_Porosity Hydrogeology!$L:$L) ->  | M243: =1 + 0.001 * (Attenuation_Partition_Coefficient_Kd_Species_8) * (Attenuation_Dry_bulk_density) / (Hydrogeology_Porosity Hydrogeology!$M:$M) ->  | N243: =1 + 0.001 * (Attenuation_Partition_Coefficient_Kd_Species_8) * (Attenuation_Dry_bulk_density) / (Hydrogeology_Porosity Hydrogeology!$N:$N) ->  | O243: =1 + 0.001 * (Attenuation_Partition_Coefficient_Kd_Species_8) * (Attenuation_Dry_bulk_density) / (Hydrogeology_Porosity Hydrogeology!$O:$O) ->  | P243: =1 + 0.001 * (Attenuation_Partition_Coefficient_Kd_Species_8) * (Attenuation_Dry_bulk_density) / (Hydrogeology_Porosity Hydrogeology!$P:$P) ->  | Q243: =1 + 0.001 * (Attenuation_Partition_Coefficient_Kd_Species_8) * (Attenuation_Dry_bulk_density) / (Hydrogeology_Porosity Hydrogeology!$Q:$Q) ->  | R243: =1 + 0.001 * (Attenuation_Partition_Coefficient_Kd_Species_8) * (Attenuation_Dry_bulk_density) / (Hydrogeology_Porosity Hydrogeology!$R:$R) -> 
A244: Distribution | C244: constant | D244: constant | E244: constant | F244: constant | G244: constant | H244: constant | I244: constant | J244: constant | K244: constant | L244: constant | M244: constant | N244: constant | O244: constant | P244: constant | Q244: constant | R244: constant
A245: Attenuation_Retardation_Species_8_param1
A246: Attenuation_Retardation_Species_8_param2
A247: Attenuation_Retardation_Species_8_param3
A250: Attenuation_Half_Life_Species_8 | B250: days | C250: No Decay | D250: No Decay | E250: No Decay | F250: No Decay | G250: No Decay | H250: No Decay | I250: No Decay | J250: No Decay | K250: No Decay | L250: No Decay | M250: No Decay | N250: No Decay | O250: No Decay | P250: No Decay | Q250: No Decay | R250: No Decay
A251: Distribution | C251: constant | D251: constant | E251: constant | F251: constant | G251: constant | H251: constant | I251: constant | J251: constant | K251: constant | L251: constant | M251: constant | N251: constant | O251: constant | P251: constant | Q251: constant | R251: constant
A252: Attenuation_Half_Life_Species_8_param1
A253: Attenuation_Half_Life_Species_8_param2
A254: Attenuation_Half_Life_Species_8_param3
A257: Attenuation_Decay_Coefficient_Species_8 | B257: 1/s | C257: =IF((_xlfn.SINGLE(Attenuation_Half_Life_Species_8))<>"No Decay", LN(2) / ((_xlfn.SINGLE(Attenuation_Half_Life_Species_8)) *_xlfn.SINGLE( s_per_day)),0) -> 0 | D257: 0 | E257: 0 | F257: 0 | G257: 0 | H257: 0 | I257: 0 | J257: 0 | K257: 0 | L257: 0 | M257: 0 | N257: 0 | O257: 0 | P257: 0 | Q257: 0 | R257: 0
A258: Distribution | C258: constant | D258: constant | E258: constant | F258: constant | G258: constant | H258: constant | I258: constant | J258: constant | K258: constant | L258: constant | M258: constant | N258: constant | O258: constant | P258: constant | Q258: constant | R258: constant
A259: Attenuation_Decay_Coefficient_Species_8_param1
A260: Attenuation_Decay_Coefficient_Species_8_param2
A261: Attenuation_Decay_Coefficient_Species_8_param3

Sheet WaterBalance
A1: Rainfall
A2: Effective Rainfall | B2: q_er | C2: 166 | D2: mm/a
A3: Area | B3: A | C3: 17418 | D3: m2 | E3: Area of stabilised waste measured from GIS
A4: Infiltration flux | B4: Q_inf | C4: =q_er*A/(31536000*1000) -> 9.168531202e-05 | D4: m3/s | F4: =Q_inf/A -> 5.263825469e-09
A6: Made Ground
A7: Head in MG | B7: h_mg | C7: =x -> 3.0107351 | D7: mAOD
A8: Head at Milton Creek | B8: h_mc | C8: 2 | D8: mAOD
A9: Distance in MG | B9: d_mg | C9: 140 | D9: mAOD | E9: Approx distance from mid point of Site to Milton Creek beyond northeastern extent of Site
A10: Hydraulic Conductivity MG | B10: K_mg | C10: 1e-05 | D10: m/s | F10: =K_mg*86400 -> 0.864 | G10: m/d
A11: Ground Level | B11: T_mg | C11: 4 | D11: mAOD
A12: Elevation of base of MG | B12: B_mg | C12: 2 | D12: mAOD
A13: Perimeter length along Milton Creek | B13: P_mg | C13: 268 | D13: m | E13: Measured off GIS
A14: Hydralic gradient MG | B14: i_mg | C14: =(h_mg-h_mc)/d_mg -> 0.007219536431 | D14: -
A15: Darcy velocity MG | B15: v_mg | C15: =K_mg*i_mg -> 7.219536431e-08 | D15: m/s
A16: Saturated thickness MG | B16: s_mg | C16: =((h_mg+h_mc)/2)-B_mg -> 0.5053675502 | D16: m
A17: Groundwater flux in MG | B17: Q_mg | C17: =v_mg*s_mg*P_mg -> 9.778032098e-06 | D17: m3/s
A19: Alluvium
A20: Thickness Alluvium | B20: t_al | C20: 3 | D20: m
A21: Hydraulic conductivity Alluvium | B21: K_al | C21: 1e-08 | D21: m/s | F21: =K_al*86400 -> 0.000864 | G21: m/d
A22: Hydraulic gradient across Alluvium | B22: i_al | C22: =(h_mg-h_ck)/t_al -> 0.4702450334 | D22: -
A23: Darcy velocity Alluvium | B23: v_al | C23: =K_al*i_al -> 4.702450334e-09 | D23: m/s
A24: Porewater velocity Alluvium | B24: pv_al | C24: =v_al/Hydrogeology!E40 -> 4.702450334e-07 | D24: m/s
A25: Flux across Alluvium | B25: Q_al | C25: =v_al*A -> 8.190727993e-05 | D25: m3/s
A27: Chalk
A28: Head in Chalk | B28: h_ck | C28: 1.6 | D28: mAOD | E28: Average head in Chalk based on LEAP water level measurements
A29: Hydraulic gradient in Chalk | B29: i_ck | C29: 0.001 | D29: -
A30: Hydraulic conductivity in Chalk | B30: k_ck | C30: =5/86400 -> 5.787037037e-05 | D30: m/s | E30: Assume 5 m/d | F30: =k_ck*86400 -> 5 | G30: m/d
A31: Darcy velocity Chalk | B31: v_ck | C31: =i_ck*k_ck -> 5.787037037e-08 | D31: m/s
A32: Width perpendicular to gw flow | B32: w_ck | C32: 220 | D32: m | E32: Measured from northeast tip to southwest tip
A33: Saturated thickness | B33: t_ck | C33: 50 | D33: m | E33: Groundwater flow restricted to top 50 m where fissured zone is present
A34: Chalk flow | B34: Q_ck | C34: =v_ck*w_ck*t_ck -> 0.0006365740741 | D34: m3/s
A36: Milton Creek
A37: Tidal range | B37: tr_mc | C37: 2.2 | D37: m | E37: Based on neap tides, 23 May 2022 tide-forecast.com
A38: Area upstream of Site | B38: a_mc | C38: 23408 | D38: m2 | E38: Typical width at mid-tide measured from GIS
A39: Volume of water | B39: v_mc | C39: =a_mc*tr_mc -> 51497.6 | D39: m3
A40: Time period | B40: t_mc | C40: =6*86400 -> 518400 | D40: s | E40: Tidal flow for 6 hrs
A41: Tidal flow | B41: Q_mc | C41: =v_mc/t_mc -> 0.09933950617 | D41: m3/s
A43: Water balance
A44: Flux to Milton Creek | C44: =Q_mg -> 9.778032098e-06 | D44: m3/s
A45: Flux across Alluvium | C45: =Q_al -> 8.190727993e-05 | D45: m3/s
A46: Flux out of MG | C46: =SUM(C44:C45) -> 9.168531202e-05 | D46: m3/s
A47: Infiltration flux | C47: =Q_inf -> 9.168531202e-05 | D47: m3/s
A48: Balance | C48: =C47-C46 -> 0 | D48: m3/s | E48: This should be less than 1E-10
A50: Quadratic
B51: a_ | C51: =K_mg*P_mg/(2*d_mg) -> 9.571428571e-06
B52: b_ | C52: =-K_mg*P_mg*B_mg/d_mg+K_al*A/t_al -> 1.977428571e-05
B53: c_ | C53: =-K_mg*P_mg*h_mc^2/(2*d_mg)+K_mg*P_mg*h_mc*B_mg/d_mg-K_al*A*h_ck/t_al-Q_inf -> -0.0001462955977
B54: x1 | C54: =(-b+SQRT(b_^2-4*a_*c_))/(2*a_) -> 3.0107351
B55: x2 | C55: =(-b-SQRT(b_^2-4*a_*c_))/(2*a_) -> -5.07670525
B56: x | C56: =IF(x1_<0,x2_,x1_) -> 3.0107351
A58: Dilution factors
A59: Milton Creek | B59: D_mc | C59: =(Q_mg+Q_mc)/Q_mg -> 10160.45797
A60: Chalk | B60: D_ck | C60: =(Q_al+Q_ck)/Q_al -> 8.77188639

Sheet Pathways
A1: PATHWAY SUMMARY
A3: Path 1 | C3: Section 1 | E3: Section 2 | G3: Section 3 | I3: Section 4 | K3: Section 5 | M3: Section 6
A4: Path 1 Type | C4: Source | E4: Unit | G4: Unit | I4: Unit | K4: Unit | M4: Receptor
A5: Path 1 Name | C5: Stabilised Waste | E5: Unsat MG: Node 1 | G5: Sat MG: Node 1 | I5: Alluvium: Node 1 | K5: Chalk: Node 1 | M5: Chalk haz
A6: Path 1 Process | C6: Declining source | E6: No Processes | G6: No Processes | I6: ADRD (1D) + Dilution | K6: No Processes | M6: Monitoring Borehole
A7: Path 1 Standards | L7: Target Standard | M7: EAL
A8: Path 1 Parameter1 | B8: Q_managed [m3/s] | C8: 0 | H8: Velocity [m/s] | I8: =pv_al -> 4.702450334e-07
A9: Path 1 Parameter2 | B9: Managed time [years] | C9: 0 | H9: Dispersivity [m] | I9: =I10/10 -> 0.3
A10: Path 1 Parameter3 | B10: Q_path [m3/s] | C10: =Q_inf -> 9.168531202e-05 | H10: Travel Distance [m] | I10: =t_al -> 3
A11: Path 1 Parameter4 | B11: Q_decline [m3/s] | C11: =Q_inf -> 9.168531202e-05 | H11: Mixing Depth [m]
A12: Path 1 Parameter5 | H12: Mixing Width [m]
A13: Path 1 Parameter6 | D13: Q_Dilute [m3/s] | E13: 0 | F13: Q_Dilute [m3/s] | G13: 0 | H13: Q_Dilute [m3/s] | I13: =Path1_Param5*Path1_Param4*(Alluvium Hydrogeology_Hydraulic_Conductivity)*(Alluvium Hydrogeology_Hydraulic_Gradient) -> 0 | J13: Q_Dilute [m3/s] | K13: 0 | L13: Q_dilute [m3/s] | M13: 0
A16: Path 2 | C16: Section 1 | E16: Section 2 | G16: Section 3 | I16: Section 4 | K16: Section 5 | M16: Section 6
A17: Path 2 Type | C17: Source | E17: Unit | G17: Unit | I17: Unit | K17: Unit | M17: Receptor
A18: Path 2 Name | C18: Stabilised Waste | E18: Unsat MG: Node 3 | G18: Sat MG: Node 3 | I18: Alluvium: Node 3 | K18: Chalk: Node 3 | M18: Chalk nonhaz
A19: Path 2 Process | C19: Declining source | E19: No Processes | G19: No Processes | I19: ADRD (1D) + Dilution | K19: Aquifer Dilution Only | M19: Monitoring Borehole
A20: Path 2 Standards | L20: Target Standard | M20: Not Specified
A21: Path 2 Parameter1 | B21: Q_managed [m3/s] | C21: 0 | H21: Velocity [m/s] | I21: =pv_al -> 4.702450334e-07
A22: Path 2 Parameter2 | B22: Managed time [years] | C22: 0 | H22: Dispersivity [m] | I22: =I23/10 -> 0.3
A23: Path 2 Parameter3 | B23: Q_path [m3/s] | C23: =Q_inf -> 9.168531202e-05 | H23: Travel Distance [m] | I23: =t_al -> 3
A24: Path 2 Parameter4 | B24: Q_decline [m3/s] | C24: =Q_inf -> 9.168531202e-05 | H24: Mixing Depth [m] | J24: Mixing Depth [m]
A25: Path 2 Parameter5 | H25: Mixing Width [m] | J25: Mixing Width [m]
A26: Path 2 Parameter6 | D26: Q_Dilute [m3/s] | E26: 0 | F26: Q_Dilute [m3/s] | G26: 0 | H26: Q_Dilute [m3/s] | I26: =Path2_Param5*Path2_Param4*(Alluvium Hydrogeology_Hydraulic_Conductivity)*(Alluvium Hydrogeology_Hydraulic_Gradient) -> 0 | J26: Q_Dilute [m3/s] | K26: =Q_ck -> 0.0006365740741 | L26: Q_dilute [m3/s] | M26: 0

Sheet Chalk nonhaz (hidden)
A1: RECEPTOR: Chalk nonhaz
A3: Receptor Options
F5: No further dilution along pathway
F7: No data requirement

Sheet Chalk haz (hidden)
A1: RECEPTOR: Chalk haz
A3: Receptor Options
F5: No further dilution along pathway
F7: No data requirement

Sheet Simulation
A1: SIMULATION PARAMETERS
B3: Monte Carlo Analysis with Crystal Ball | J3: Named Constants
C5: Reported Percentile | F5: 95 | K5: s_per_year | L5: =365.25*60*60*24 -> 31557600
C6: Number of simulations | F6: 10000 | K6: s_per_day | L6: =60*60*24 -> 86400
J9: Laplace Transform Solution Parameters
C11: Minimise while running: | K11: sigma | L11: 0
K12: nu | L12: 1
K13: nsum | L13: 16
K14: omega | L14: 11
B17: Reporting Options
C22: Number of timeslices for breakthrough curves | G22: 100
B24: The timeslices specified on the results sheets are saved below.
C25: Path1 timeslices in years | E25: Path2 timeslices in years
C26: TS_Path1 | E26: TS_Path2
C27: 10 | E27: 10
C28: 20 | E28: 20
C29: 30 | E29: 30
C30: 40 | E30: 40
C31: 50 | E31: 50
C32: 60 | E32: 60
C33: 70 | E33: 70
C34: 80 | E34: 80
C35: 90 | E35: 90
C36: 100 | E36: 100
C37: 110 | E37: 110
C38: 120 | E38: 120
C39: 130 | E39: 130
C40: 140 | E40: 140
C41: 150 | E41: 150
C42: 160 | E42: 160
C43: 170 | E43: 170
C44: 180 | E44: 180
C45: 190 | E45: 190
C46: 200 | E46: 200
C47: 210 | E47: 210
C48: 220 | E48: 220
C49: 230 | E49: 230
C50: 240 | E50: 240
C51: 250 | E51: 250
C52: 260 | E52: 260
C53: 270 | E53: 270
C54: 280 | E54: 280
C55: 290 | E55: 290
C56: 300 | E56: 300
C57: 310 | E57: 310
C58: 320 | E58: 320
C59: 330 | E59: 330
C60: 340 | E60: 340
C61: 350 | E61: 350
C62: 360 | E62: 360
C63: 370 | E63: 370
C64: 380 | E64: 380
C65: 390 | E65: 390
C66: 400 | E66: 400
C67: 410 | E67: 410
C68: 420 | E68: 420
C69: 430 | E69: 430
C70: 440 | E70: 440
C71: 450 | E71: 450
C72: 460 | E72: 460
C73: 470 | E73: 470
C74: 480 | E74: 480
C75: 490 | E75: 490
C76: 500 | E76: 500
C77: 510 | E77: 510
C78: 520 | E78: 520
C79: 530 | E79: 530
C80: 540 | E80: 540
C81: 550 | E81: 550
C82: 560 | E82: 560
C83: 570 | E83: 570
C84: 580 | E84: 580
C85: 590 | E85: 590
C86: 600 | E86: 600
C87: 610 | E87: 610
C88: 620 | E88: 620
C89: 630 | E89: 630
C90: 640 | E90: 640
C91: 650 | E91: 650
C92: 660 | E92: 660
C93: 670 | E93: 670
C94: 680 | E94: 680
C95: 690 | E95: 690
C96: 700 | E96: 700
C97: 710 | E97: 710
C98: 720 | E98: 720
C99: 730 | E99: 730
C100: 740 | E100: 740
C101: 750 | E101: 750
C102: 760 | E102: 760
C103: 770 | E103: 770
C104: 780 | E104: 780
C105: 790 | E105: 790
C106: 800 | E106: 800
C107: 810 | E107: 810
C108: 820 | E108: 820
C109: 830 | E109: 830
C110: 840 | E110: 840
C111: 850 | E111: 850
C112: 860 | E112: 860
C113: 870 | E113: 870
C114: 880 | E114: 880
C115: 890 | E115: 890
C116: 900 | E116: 900
C117: 910 | E117: 910
C118: 920 | E118: 920
C119: 930 | E119: 930
C120: 940 | E120: 940
C121: 950 | E121: 950
C122: 960 | E122: 960
C123: 970 | E123: 970
C124: 980 | E124: 980
C125: 990 | E125: 990
C126: 1000 | E126: 1000

Sheet Audit
A1: AUDIT TRAIL SHEET
A3: Author | B3: Date | C3: Time | E3: Cell Address | G3: New Value | H3: Old Value | I3: Cell Name
A6: Saved 13/07/2022: 11:12:52 Level Number: 5
A8: BREAKTHROUGH RESULTS
A10: Advanced
A11: Pollutant Linkage: Stabilised Wast, Unsat MG, Sat MG, WaterTable
A12: Concentrations in mg/L in WaterTable
A14: Compared with LOQ target concentration in mg/L
B15: 0.005
A17: Time(years) | B17: Species1
B18: As
A19: 10 | B19: 0
A20: 20 | B20: 0
A21: 30 | B21: 0
A22: 40 | B22: 0
A23: 50 | B23: 0
A26: Saved 13/07/2022: 11:13:53 Level Number: 5
A28: BREAKTHROUGH RESULTS
A30: Advanced
A31: Pollutant Linkage: Stabilised Wast, Unsat MG, Sat MG, WaterTable
A32: Concentrations in mg/L in WaterTable
A34: Compared with LOQ target concentration in mg/L
B35: 0.005
A37: Time(years) | B37: Species1
B38: As
A39: 0.02 | B39: 0.0552210686
A40: 0.04 | B40: 0.05082277382
A41: 0.06 | B41: 0.04677479817
A42: 0.08 | B42: 0.04304923914
A43: 0.1 | B43: 0.03962041661
A44: 0.12 | B44: 0.03646469586
A45: 0.14 | B45: 0.03356032465
A46: 0.16 | B46: 0.03088728328
A47: 0.18 | B47: 0.02842714658
A48: 0.2 | B48: 0.02616295695
A49: 0.22 | B49: 0.02407910742
A50: 0.24 | B50: 0.02216123412
A51: 0.26 | B51: 0.02039611723
A52: 0.28 | B52: 0.01877158988
A53: 0.3 | B53: 0.01727645426
A54: 0.32 | B54: 0.01590040448
A55: 0.34 | B55: 0.01463395549
A56: 0.36 | B56: 0.0134683777
A57: 0.38 | B57: 0.01239563685
A58: 0.4 | B58: 0.01140833858
A59: 0.42 | B59: 0.01049967748
A60: 0.44 | B60: 0.0096633902
A61: 0.46 | B61: 0.008893712239
A62: 0.48 | B62: 0.008185338245
A63: 0.5 | B63: 0.007533385426
A64: 0.52 | B64: 0.006933359902
A65: 0.54 | B65: 0.006381125723
A66: 0.56 | B66: 0.005872876362
A67: 0.58 | B67: 0.00540510848
A68: 0.6 | B68: 0.004974597773
A69: 0.62 | B69: 0.00457837675
A70: 0.64 | B70: 0.004213714277
A71: 0.66 | B71: 0.003878096752
A72: 0.68 | B72: 0.003569210778
A73: 0.7 | B73: 0.003284927217
A74: 0.72 | B74: 0.003023286515
A75: 0.74 | B75: 0.002782485196
A76: 0.76 | B76: 0.002560863425
A77: 0.78 | B77: 0.002356893574
A78: 0.8 | B78: 0.002169169688
A79: 0.82 | B79: 0.001996397793
A80: 0.84 | B80: 0.001837386983
A81: 0.86 | B81: 0.0016910412
A82: 0.88 | B82: 0.001556351692
A83: 0.9 | B83: 0.001432390048
A84: 0.92 | B84: 0.001318301807
A85: 0.94 | B85: 0.001213300564
A86: 0.96 | B86: 0.001116662549
A87: 0.98 | B87: 0.001027721641
A88: 1 | B88: 0.0009458647749
A89: 1.02 | B89: 0.000870527714
A90: 1.04 | B90: 0.0008011911634
A91: 1.06 | B91: 0.0007373771897
A92: 1.08 | B92: 0.000678645926
A93: 1.1 | B93: 0.0006245925398
A94: 1.12 | B94: 0.000574844444
A95: 1.14 | B95: 0.000529058727
A96: 1.16 | B96: 0.0004869197898
A97: 1.18 | B97: 0.0004481371707
A98: 1.2 | B98: 0.0004124435425
A99: 1.22 | B99: 0.0003795928711
A100: 1.24 | B100: 0.000349358718
A101: 1.26 | B101: 0.0003215326804
A102: 1.28 | B102: 0.0002959229549
A103: 1.3 | B103: 0.0002723530146
A104: 1.32 | B104: 0.0002506603931
A105: 1.34 | B105: 0.0002306955641
A106: 1.36 | B106: 0.0002123209109
A107: 1.38 | B107: 0.0001954097777
A108: 1.4 | B108: 0.0001798455967
A109: 1.42 | B109: 0.0001655210851
A110: 1.44 | B110: 0.0001523375043
A111: 1.46 | B111: 0.0001402039808
A112: 1.48 | B112: 0.0001290368784
A113: 1.5 | B113: 0.000118759223
A114: 1.52 | B114: 0.000109300171
A115: 1.54 | B115: 0.0001005945218
A116: 1.56 | B116: 9.258226751e-05
A117: 1.58 | B117: 8.520818011e-05
A118: 1.6 | B118: 7.842143038e-05
A119: 1.62 | B119: 7.217523744e-05
A120: 1.64 | B120: 6.642654668e-05
A121: 1.66 | B121: 6.113573249e-05
A122: 1.68 | B122: 5.626632574e-05
A123: 1.7 | B123: 5.178476153e-05
A124: 1.72 | B124: 4.766014895e-05
A125: 1.74 | B125: 4.386405689e-05
A126: 1.76 | B126: 4.037031943e-05
A127: 1.78 | B127: 3.715485401e-05
A128: 1.8 | B128: 3.419549678e-05
A129: 1.82 | B129: 3.147184905e-05
A130: 1.84 | B130: 2.896513674e-05
A131: 1.86 | B131: 2.665808118e-05
A132: 1.88 | B132: 2.453478007e-05
A133: 1.9 | B133: 2.258059735e-05
A134: 1.92 | B134: 2.078206309e-05
A135: 1.94 | B135: 1.912678015e-05
A136: 1.96 | B136: 1.760333852e-05
A137: 1.98 | B137: 1.620123735e-05
A138: 2 | B138: 1.49108119e-05
A141: Saved 13/07/2022: 11:18:08 Level Number: 5
A143: BREAKTHROUGH RESULTS
A145: Advanced
A146: Pollutant Linkage: Stabilised Wast, Unsat MG, Sat MG, WaterTable
A147: Concentrations in mg/L in WaterTable
A149: Compared with LOQ target concentration in mg/L
B150: 0.005
A152: Time(years) | B152: Species1
B153: As
A154: 0.02 | B154: 3.151626537e-26
A155: 0.04 | B155: 0
A156: 0.06 | B156: 2.234797273e-16
A157: 0.08 | B157: 1.797629862e-12
A158: 0.1 | B158: 3.977091678e-10
A159: 0.12 | B159: 1.447634934e-08
A160: 0.14 | B160: 1.874089658e-07
A161: 0.16 | B161: 1.269500378e-06
A162: 0.18 | B162: 5.578110243e-06
A163: 0.2 | B163: 1.808934369e-05
A164: 0.22 | B164: 4.700863576e-05
A165: 0.24 | B165: 0.000103422455
A166: 0.26 | B166: 0.0002001159172
A167: 0.28 | B167: 0.0003499585016
A168: 0.3 | B168: 0.0005643067631
A169: 0.32 | B169: 0.0008517460852
A170: 0.34 | B170: 0.001217320065
A171: 0.36 | B171: 0.001662253463
A172: 0.38 | B172: 0.002184087853
A173: 0.4 | B173: 0.002777112868
A174: 0.42 | B174: 0.003432974467
A175: 0.44 | B175: 0.00414135893
A176: 0.46 | B176: 0.004890675963
A177: 0.48 | B177: 0.005668688975
A178: 0.5 | B178: 0.006463061861
A179: 0.52 | B179: 0.007261808168
A180: 0.54 | B180: 0.008053640291
A181: 0.56 | B181: 0.008828224149
A182: 0.58 | B182: 0.009576349307
A183: 0.6 | B183: 0.01029002676
A184: 0.62 | B184: 0.01096252716
A185: 0.64 | B185: 0.01158837181
A186: 0.66 | B186: 0.01216328762
A187: 0.68 | B187: 0.01268413597
A188: 0.7 | B188: 0.01314882374
A189: 0.72 | B189: 0.01355620337
A190: 0.74 | B190: 0.01390596755
A191: 0.76 | B191: 0.01419854278
A192: 0.78 | B192: 0.01443498505
A193: 0.8 | B193: 0.01461688004
A194: 0.82 | B194: 0.01474624951
A195: 0.84 | B195: 0.01482546482
A196: 0.86 | B196: 0.01485716839
A197: 0.88 | B197: 0.01484420305
A198: 0.9 | B198: 0.01478954952
A199: 0.92 | B199: 0.01469627163
A200: 0.94 | B200: 0.01456746885
A201: 0.96 | B201: 0.01440623584
A202: 0.98 | B202: 0.0142156283
A203: 1 | B203: 0.0139986347
A204: 1.02 | B204: 0.01375815324
A205: 1.04 | B205: 0.0134969735
A206: 1.06 | B206: 0.01321776223
A207: 1.08 | B207: 0.0129230529
A208: 1.1 | B208: 0.01261523825
A209: 1.12 | B209: 0.01229656577
A210: 1.14 | B210: 0.01196913534
A211: 1.16 | B211: 0.01163489898
A212: 1.18 | B212: 0.01129566219
A213: 1.2 | B213: 0.01095308664
A214: 1.22 | B214: 0.01060869396
A215: 1.24 | B215: 0.01026387046
A216: 1.26 | B216: 0.009919872431
A217: 1.28 | B217: 0.009577832048
A218: 1.3 | B218: 0.009238763541
A219: 1.32 | B219: 0.008903569656
... 1451 more rows

Sheet user_results
A1: BREAKTHROUGH RESULTS
A2: Site Name: "Crown Quay"
A3: Advanced
A4: Pollutant Linkage: Stabilised Wast, Unsat MG, Sat MG, Alluvium, Chalk, Chalk haz/non-haz
A5: Concentrations in mg/L in Chalk haz
A7: Compared with EAL target concentration in mg/L
B8: =(Quality_Standard_1 Contaminants_Species1) -> 0.001 | C8: =(Quality_Standard_1 Contaminants_Species2) -> 0.0005 | D8: =(Quality_Standard_1 Contaminants_Species3) -> 2e-05 | E8: =(Quality_Standard_1 Contaminants_Species4) -> 0.0002
A10: Time(years) | B10: Species1 | C10: Species2
B11: =(Contaminants_Source_determinand_names Contaminants_Species1) -> Cr | C11: =(Contaminants_Source_determinand_names Contaminants_Species2) -> Phenol | D11: =(Contaminants_Source_determinand_names Contaminants_Species3) -> Hg | E11: =(Contaminants_Source_determinand_names Contaminants_Species4) -> Pb
A12: 0.1 | B12: =IF(OR(converge=0, RUN_RAM=0),0,RAMData(converge,$A12*s_per_year, sigma, nu, omega, 0, nsum, Calcs_pvals_path1_species1)) ->  | C12: =IF(OR(converge=0, RUN_RAM=0),0,RAMData(converge,$A12*s_per_year, sigma, nu, omega, 0, nsum, Calcs_pvals_path1_species2)) ->  | D12: =IF(OR(converge=0, RUN_RAM=0),0,RAMData(converge,$A12*s_per_year, sigma, nu, omega, 0, nsum, Calcs_pvals_path1_species3)) ->  | E12: =IF(OR(converge=0, RUN_RAM=0),0,RAMData(converge,$A12*s_per_year, sigma, nu, omega, 0, nsum, Calcs_pvals_path1_species4)) -> 
A13: 0.2 | B13: =IF(OR(converge=0, RUN_RAM=0),0,RAMData(converge,$A13*s_per_year, sigma, nu, omega, 0, nsum, Calcs_pvals_path1_species1)) ->  | C13: =IF(OR(converge=0, RUN_RAM=0),0,RAMData(converge,$A13*s_per_year, sigma, nu, omega, 0, nsum, Calcs_pvals_path1_species2)) ->  | D13: =IF(OR(converge=0, RUN_RAM=0),0,RAMData(converge,$A13*s_per_year, sigma, nu, omega, 0, nsum, Calcs_pvals_path1_species3)) ->  | E13: =IF(OR(converge=0, RUN_RAM=0),0,RAMData(converge,$A13*s_per_year, sigma, nu, omega, 0, nsum, Calcs_pvals_path1_species4)) -> 
A14: 0.3 | B14: =IF(OR(converge=0, RUN_RAM=0),0,RAMData(converge,$A14*s_per_year, sigma, nu, omega, 0, nsum, Calcs_pvals_path1_species1)) ->  | C14: =IF(OR(converge=0, RUN_RAM=0),0,RAMData(converge,$A14*s_per_year, sigma, nu, omega, 0, nsum, Calcs_pvals_path1_species2)) ->  | D14: =IF(OR(converge=0, RUN_RAM=0),0,RAMData(converge,$A14*s_per_year, sigma, nu, omega, 0, nsum, Calcs_pvals_path1_species3)) ->  | E14: =IF(OR(converge=0, RUN_RAM=0),0,RAMData(converge,$A14*s_per_year, sigma, nu, omega, 0, nsum, Calcs_pvals_path1_species4)) -> 
A15: 0.4 | B15: =IF(OR(converge=0, RUN_RAM=0),0,RAMData(converge,$A15*s_per_year, sigma, nu, omega, 0, nsum, Calcs_pvals_path1_species1)) ->  | C15: =IF(OR(converge=0, RUN_RAM=0),0,RAMData(converge,$A15*s_per_year, sigma, nu, omega, 0, nsum, Calcs_pvals_path1_species2)) ->  | D15: =IF(OR(converge=0, RUN_RAM=0),0,RAMData(converge,$A15*s_per_year, sigma, nu, omega, 0, nsum, Calcs_pvals_path1_species3)) ->  | E15: =IF(OR(converge=0, RUN_RAM=0),0,RAMData(converge,$A15*s_per_year, sigma, nu, omega, 0, nsum, Calcs_pvals_path1_species4)) -> 
A16: 0.5 | B16: =IF(OR(converge=0, RUN_RAM=0),0,RAMData(converge,$A16*s_per_year, sigma, nu, omega, 0, nsum, Calcs_pvals_path1_species1)) ->  | C16: =IF(OR(converge=0, RUN_RAM=0),0,RAMData(converge,$A16*s_per_year, sigma, nu, omega, 0, nsum, Calcs_pvals_path1_species2)) ->  | D16: =IF(OR(converge=0, RUN_RAM=0),0,RAMData(converge,$A16*s_per_year, sigma, nu, omega, 0, nsum, Calcs_pvals_path1_species3)) ->  | E16: =IF(OR(converge=0, RUN_RAM=0),0,RAMData(converge,$A16*s_per_year, sigma, nu, omega, 0, nsum, Calcs_pvals_path1_species4)) -> 
A17: 0.6 | B17: =IF(OR(converge=0, RUN_RAM=0),0,RAMData(converge,$A17*s_per_year, sigma, nu, omega, 0, nsum, Calcs_pvals_path1_species1)) ->  | C17: =IF(OR(converge=0, RUN_RAM=0),0,RAMData(converge,$A17*s_per_year, sigma, nu, omega, 0, nsum, Calcs_pvals_path1_species2)) ->  | D17: =IF(OR(converge=0, RUN_RAM=0),0,RAMData(converge,$A17*s_per_year, sigma, nu, omega, 0, nsum, Calcs_pvals_path1_species3)) ->  | E17: =IF(OR(converge=0, RUN_RAM=0),0,RAMData(converge,$A17*s_per_year, sigma, nu, omega, 0, nsum, Calcs_pvals_path1_species4)) -> 
A18: 0.7 | B18: =IF(OR(converge=0, RUN_RAM=0),0,RAMData(converge,$A18*s_per_year, sigma, nu, omega, 0, nsum, Calcs_pvals_path1_species1)) ->  | C18: =IF(OR(converge=0, RUN_RAM=0),0,RAMData(converge,$A18*s_per_year, sigma, nu, omega, 0, nsum, Calcs_pvals_path1_species2)) ->  | D18: =IF(OR(converge=0, RUN_RAM=0),0,RAMData(converge,$A18*s_per_year, sigma, nu, omega, 0, nsum, Calcs_pvals_path1_species3)) ->  | E18: =IF(OR(converge=0, RUN_RAM=0),0,RAMData(converge,$A18*s_per_year, sigma, nu, omega, 0, nsum, Calcs_pvals_path1_species4)) -> 
A19: 0.8 | B19: =IF(OR(converge=0, RUN_RAM=0),0,RAMData(converge,$A19*s_per_year, sigma, nu, omega, 0, nsum, Calcs_pvals_path1_species1)) ->  | C19: =IF(OR(converge=0, RUN_RAM=0),0,RAMData(converge,$A19*s_per_year, sigma, nu, omega, 0, nsum, Calcs_pvals_path1_species2)) ->  | D19: =IF(OR(converge=0, RUN_RAM=0),0,RAMData(converge,$A19*s_per_year, sigma, nu, omega, 0, nsum, Calcs_pvals_path1_species3)) ->  | E19: =IF(OR(converge=0, RUN_RAM=0),0,RAMData(converge,$A19*s_per_year, sigma, nu, omega, 0, nsum, Calcs_pvals_path1_species4)) -> 
A20: 0.9 | B20: =IF(OR(converge=0, RUN_RAM=0),0,RAMData(converge,$A20*s_per_year, sigma, nu, omega, 0, nsum, Calcs_pvals_path1_species1)) ->  | C20: =IF(OR(converge=0, RUN_RAM=0),0,RAMData(converge,$A20*s_per_year, sigma, nu, omega, 0, nsum, Calcs_pvals_path1_species2)) ->  | D20: =IF(OR(converge=0, RUN_RAM=0),0,RAMData(converge,$A20*s_per_year, sigma, nu, omega, 0, nsum, Calcs_pvals_path1_species3)) ->  | E20: =IF(OR(converge=0, RUN_RAM=0),0,RAMData(converge,$A20*s_per_year, sigma, nu, omega, 0, nsum, Calcs_pvals_path1_species4)) -> 
A21: 1 | B21: =IF(OR(converge=0, RUN_RAM=0),0,RAMData(converge,$A21*s_per_year, sigma, nu, omega, 0, nsum, Calcs_pvals_path1_species1)) ->  | C21: =IF(OR(converge=0, RUN_RAM=0),0,RAMData(converge,$A21*s_per_year, sigma, nu, omega, 0, nsum, Calcs_pvals_path1_species2)) ->  | D21: =IF(OR(converge=0, RUN_RAM=0),0,RAMData(converge,$A21*s_per_year, sigma, nu, omega, 0, nsum, Calcs_pvals_path1_species3)) ->  | E21: =IF(OR(converge=0, RUN_RAM=0),0,RAMData(converge,$A21*s_per_year, sigma, nu, omega, 0, nsum, Calcs_pvals_path1_species4)) -> 
A22: 1.1 | B22: =IF(OR(converge=0, RUN_RAM=0),0,RAMData(converge,$A22*s_per_year, sigma, nu, omega, 0, nsum, Calcs_pvals_path1_species1)) ->  | C22: =IF(OR(converge=0, RUN_RAM=0),0,RAMData(converge,$A22*s_per_year, sigma, nu, omega, 0, nsum, Calcs_pvals_path1_species2)) ->  | D22: =IF(OR(converge=0, RUN_RAM=0),0,RAMData(converge,$A22*s_per_year, sigma, nu, omega, 0, nsum, Calcs_pvals_path1_species3)) ->  | E22: =IF(OR(converge=0, RUN_RAM=0),0,RAMData(converge,$A22*s_per_year, sigma, nu, omega, 0, nsum, Calcs_pvals_path1_species4)) -> 
A23: 1.2 | B23: =IF(OR(converge=0, RUN_RAM=0),0,RAMData(converge,$A23*s_per_year, sigma, nu, omega, 0, nsum, Calcs_pvals_path1_species1)) ->  | C23: =IF(OR(converge=0, RUN_RAM=0),0,RAMData(converge,$A23*s_per_year, sigma, nu, omega, 0, nsum, Calcs_pvals_path1_species2)) ->  | D23: =IF(OR(converge=0, RUN_RAM=0),0,RAMData(converge,$A23*s_per_year, sigma, nu, omega, 0, nsum, Calcs_pvals_path1_species3)) ->  | E23: =IF(OR(converge=0, RUN_RAM=0),0,RAMData(converge,$A23*s_per_year, sigma, nu, omega, 0, nsum, Calcs_pvals_path1_species4)) -> 
A24: 1.3 | B24: =IF(OR(converge=0, RUN_RAM=0),0,RAMData(converge,$A24*s_per_year, sigma, nu, omega, 0, nsum, Calcs_pvals_path1_species1)) ->  | C24: =IF(OR(converge=0, RUN_RAM=0),0,RAMData(converge,$A24*s_per_year, sigma, nu, omega, 0, nsum, Calcs_pvals_path1_species2)) ->  | D24: =IF(OR(converge=0, RUN_RAM=0),0,RAMData(converge,$A24*s_per_year, sigma, nu, omega, 0, nsum, Calcs_pvals_path1_species3)) ->  | E24: =IF(OR(converge=0, RUN_RAM=0),0,RAMData(converge,$A24*s_per_year, sigma, nu, omega, 0, nsum, Calcs_pvals_path1_species4)) -> 
A25: 1.4 | B25: =IF(OR(converge=0, RUN_RAM=0),0,RAMData(converge,$A25*s_per_year, sigma, nu, omega, 0, nsum, Calcs_pvals_path1_species1)) ->  | C25: =IF(OR(converge=0, RUN_RAM=0),0,RAMData(converge,$A25*s_per_year, sigma, nu, omega, 0, nsum, Calcs_pvals_path1_species2)) ->  | D25: =IF(OR(converge=0, RUN_RAM=0),0,RAMData(converge,$A25*s_per_year, sigma, nu, omega, 0, nsum, Calcs_pvals_path1_species3)) ->  | E25: =IF(OR(converge=0, RUN_RAM=0),0,RAMData(converge,$A25*s_per_year, sigma, nu, omega, 0, nsum, Calcs_pvals_path1_species4)) -> 
A26: 1.5 | B26: =IF(OR(converge=0, RUN_RAM=0),0,RAMData(converge,$A26*s_per_year, sigma, nu, omega, 0, nsum, Calcs_pvals_path1_species1)) ->  | C26: =IF(OR(converge=0, RUN_RAM=0),0,RAMData(converge,$A26*s_per_year, sigma, nu, omega, 0, nsum, Calcs_pvals_path1_species2)) ->  | D26: =IF(OR(converge=0, RUN_RAM=0),0,RAMData(converge,$A26*s_per_year, sigma, nu, omega, 0, nsum, Calcs_pvals_path1_species3)) ->  | E26: =IF(OR(converge=0, RUN_RAM=0),0,RAMData(converge,$A26*s_per_year, sigma, nu, omega, 0, nsum, Calcs_pvals_path1_species4)) -> 
A27: 1.6 | B27: =IF(OR(converge=0, RUN_RAM=0),0,RAMData(converge,$A27*s_per_year, sigma, nu, omega, 0, nsum, Calcs_pvals_path1_species1)) ->  | C27: =IF(OR(converge=0, RUN_RAM=0),0,RAMData(converge,$A27*s_per_year, sigma, nu, omega, 0, nsum, Calcs_pvals_path1_species2)) ->  | D27: =IF(OR(converge=0, RUN_RAM=0),0,RAMData(converge,$A27*s_per_year, sigma, nu, omega, 0, nsum, Calcs_pvals_path1_species3)) ->  | E27: =IF(OR(converge=0, RUN_RAM=0),0,RAMData(converge,$A27*s_per_year, sigma, nu, omega, 0, nsum, Calcs_pvals_path1_species4)) -> 
A28: 1.7 | B28: =IF(OR(converge=0, RUN_RAM=0),0,RAMData(converge,$A28*s_per_year, sigma, nu, omega, 0, nsum, Calcs_pvals_path1_species1)) ->  | C28: =IF(OR(converge=0, RUN_RAM=0),0,RAMData(converge,$A28*s_per_year, sigma, nu, omega, 0, nsum, Calcs_pvals_path1_species2)) ->  | D28: =IF(OR(converge=0, RUN_RAM=0),0,RAMData(converge,$A28*s_per_year, sigma, nu, omega, 0, nsum, Calcs_pvals_path1_species3)) ->  | E28: =IF(OR(converge=0, RUN_RAM=0),0,RAMData(converge,$A28*s_per_year, sigma, nu, omega, 0, nsum, Calcs_pvals_path1_species4)) -> 
A29: 1.8 | B29: =IF(OR(converge=0, RUN_RAM=0),0,RAMData(converge,$A29*s_per_year, sigma, nu, omega, 0, nsum, Calcs_pvals_path1_species1)) ->  | C29: =IF(OR(converge=0, RUN_RAM=0),0,RAMData(converge,$A29*s_per_year, sigma, nu, omega, 0, nsum, Calcs_pvals_path1_species2)) ->  | D29: =IF(OR(converge=0, RUN_RAM=0),0,RAMData(converge,$A29*s_per_year, sigma, nu, omega, 0, nsum, Calcs_pvals_path1_species3)) ->  | E29: =IF(OR(converge=0, RUN_RAM=0),0,RAMData(converge,$A29*s_per_year, sigma, nu, omega, 0, nsum, Calcs_pvals_path1_species4)) -> 
A30: 1.9 | B30: =IF(OR(converge=0, RUN_RAM=0),0,RAMData(converge,$A30*s_per_year, sigma, nu, omega, 0, nsum, Calcs_pvals_path1_species1)) ->  | C30: =IF(OR(converge=0, RUN_RAM=0),0,RAMData(converge,$A30*s_per_year, sigma, nu, omega, 0, nsum, Calcs_pvals_path1_species2)) ->  | D30: =IF(OR(converge=0, RUN_RAM=0),0,RAMData(converge,$A30*s_per_year, sigma, nu, omega, 0, nsum, Calcs_pvals_path1_species3)) ->  | E30: =IF(OR(converge=0, RUN_RAM=0),0,RAMData(converge,$A30*s_per_year, sigma, nu, omega, 0, nsum, Calcs_pvals_path1_species4)) -> 
A31: 2 | B31: =IF(OR(converge=0, RUN_RAM=0),0,RAMData(converge,$A31*s_per_year, sigma, nu, omega, 0, nsum, Calcs_pvals_path1_species1)) ->  | C31: =IF(OR(converge=0, RUN_RAM=0),0,RAMData(converge,$A31*s_per_year, sigma, nu, omega, 0, nsum, Calcs_pvals_path1_species2)) ->  | D31: =IF(OR(converge=0, RUN_RAM=0),0,RAMData(converge,$A31*s_per_year, sigma, nu, omega, 0, nsum, Calcs_pvals_path1_species3)) ->  | E31: =IF(OR(converge=0, RUN_RAM=0),0,RAMData(converge,$A31*s_per_year, sigma, nu, omega, 0, nsum, Calcs_pvals_path1_species4)) -> 
A32: 2.1 | B32: =IF(OR(converge=0, RUN_RAM=0),0,RAMData(converge,$A32*s_per_year, sigma, nu, omega, 0, nsum, Calcs_pvals_path1_species1)) ->  | C32: =IF(OR(converge=0, RUN_RAM=0),0,RAMData(converge,$A32*s_per_year, sigma, nu, omega, 0, nsum, Calcs_pvals_path1_species2)) ->  | D32: =IF(OR(converge=0, RUN_RAM=0),0,RAMData(converge,$A32*s_per_year, sigma, nu, omega, 0, nsum, Calcs_pvals_path1_species3)) ->  | E32: =IF(OR(converge=0, RUN_RAM=0),0,RAMData(converge,$A32*s_per_year, sigma, nu, omega, 0, nsum, Calcs_pvals_path1_species4)) -> 
A33: 2.2 | B33: =IF(OR(converge=0, RUN_RAM=0),0,RAMData(converge,$A33*s_per_year, sigma, nu, omega, 0, nsum, Calcs_pvals_path1_species1)) ->  | C33: =IF(OR(converge=0, RUN_RAM=0),0,RAMData(converge,$A33*s_per_year, sigma, nu, omega, 0, nsum, Calcs_pvals_path1_species2)) ->  | D33: =IF(OR(converge=0, RUN_RAM=0),0,RAMData(converge,$A33*s_per_year, sigma, nu, omega, 0, nsum, Calcs_pvals_path1_species3)) ->  | E33: =IF(OR(converge=0, RUN_RAM=0),0,RAMData(converge,$A33*s_per_year, sigma, nu, omega, 0, nsum, Calcs_pvals_path1_species4)) -> 
A34: 2.3 | B34: =IF(OR(converge=0, RUN_RAM=0),0,RAMData(converge,$A34*s_per_year, sigma, nu, omega, 0, nsum, Calcs_pvals_path1_species1)) ->  | C34: =IF(OR(converge=0, RUN_RAM=0),0,RAMData(converge,$A34*s_per_year, sigma, nu, omega, 0, nsum, Calcs_pvals_path1_species2)) ->  | D34: =IF(OR(converge=0, RUN_RAM=0),0,RAMData(converge,$A34*s_per_year, sigma, nu, omega, 0, nsum, Calcs_pvals_path1_species3)) ->  | E34: =IF(OR(converge=0, RUN_RAM=0),0,RAMData(converge,$A34*s_per_year, sigma, nu, omega, 0, nsum, Calcs_pvals_path1_species4)) ->  | H34: Compared with Background target concentration in mg/L
A35: 2.4 | B35: =IF(OR(converge=0, RUN_RAM=0),0,RAMData(converge,$A35*s_per_year, sigma, nu, omega, 0, nsum, Calcs_pvals_path1_species1)) ->  | C35: =IF(OR(converge=0, RUN_RAM=0),0,RAMData(converge,$A35*s_per_year, sigma, nu, omega, 0, nsum, Calcs_pvals_path1_species2)) ->  | D35: =IF(OR(converge=0, RUN_RAM=0),0,RAMData(converge,$A35*s_per_year, sigma, nu, omega, 0, nsum, Calcs_pvals_path1_species3)) ->  | E35: =IF(OR(converge=0, RUN_RAM=0),0,RAMData(converge,$A35*s_per_year, sigma, nu, omega, 0, nsum, Calcs_pvals_path1_species4)) ->  | I35: =(Quality_Standard_1 Contaminants_Species1) -> 0.001 | K35: =(Quality_Standard_1 Contaminants_Species2) -> 0.0005 | M35: =(Quality_Standard_1 Contaminants_Species3) -> 2e-05 | O35: =(Quality_Standard_1 Contaminants_Species4) -> 0.0002
A36: 2.5 | B36: =IF(OR(converge=0, RUN_RAM=0),0,RAMData(converge,$A36*s_per_year, sigma, nu, omega, 0, nsum, Calcs_pvals_path1_species1)) ->  | C36: =IF(OR(converge=0, RUN_RAM=0),0,RAMData(converge,$A36*s_per_year, sigma, nu, omega, 0, nsum, Calcs_pvals_path1_species2)) ->  | D36: =IF(OR(converge=0, RUN_RAM=0),0,RAMData(converge,$A36*s_per_year, sigma, nu, omega, 0, nsum, Calcs_pvals_path1_species3)) ->  | E36: =IF(OR(converge=0, RUN_RAM=0),0,RAMData(converge,$A36*s_per_year, sigma, nu, omega, 0, nsum, Calcs_pvals_path1_species4)) ->  | I36: Species1 | K36: Species2 | M36: Species3 | O36: Species4
A37: 2.6 | B37: =IF(OR(converge=0, RUN_RAM=0),0,RAMData(converge,$A37*s_per_year, sigma, nu, omega, 0, nsum, Calcs_pvals_path1_species1)) ->  | C37: =IF(OR(converge=0, RUN_RAM=0),0,RAMData(converge,$A37*s_per_year, sigma, nu, omega, 0, nsum, Calcs_pvals_path1_species2)) ->  | D37: =IF(OR(converge=0, RUN_RAM=0),0,RAMData(converge,$A37*s_per_year, sigma, nu, omega, 0, nsum, Calcs_pvals_path1_species3)) ->  | E37: =IF(OR(converge=0, RUN_RAM=0),0,RAMData(converge,$A37*s_per_year, sigma, nu, omega, 0, nsum, Calcs_pvals_path1_species4)) ->  | H37: 0 | I37: 1
A38: 2.7 | B38: =IF(OR(converge=0, RUN_RAM=0),0,RAMData(converge,$A38*s_per_year, sigma, nu, omega, 0, nsum, Calcs_pvals_path1_species1)) ->  | C38: =IF(OR(converge=0, RUN_RAM=0),0,RAMData(converge,$A38*s_per_year, sigma, nu, omega, 0, nsum, Calcs_pvals_path1_species2)) ->  | D38: =IF(OR(converge=0, RUN_RAM=0),0,RAMData(converge,$A38*s_per_year, sigma, nu, omega, 0, nsum, Calcs_pvals_path1_species3)) ->  | E38: =IF(OR(converge=0, RUN_RAM=0),0,RAMData(converge,$A38*s_per_year, sigma, nu, omega, 0, nsum, Calcs_pvals_path1_species4)) ->  | H38: Time(years) | I38: =(Contaminants_Source_determinand_names Contaminants_Species1) -> Cr | J38: Time(years) | K38: =(Contaminants_Source_determinand_names Contaminants_Species2) -> Phenol | L38: Time(years) | M38: =(Contaminants_Source_determinand_names Contaminants_Species3) -> Hg | N38: Time(years) | O38: =(Contaminants_Source_determinand_names Contaminants_Species4) -> Pb
A39: 2.8 | B39: =IF(OR(converge=0, RUN_RAM=0),0,RAMData(converge,$A39*s_per_year, sigma, nu, omega, 0, nsum, Calcs_pvals_path1_species1)) ->  | C39: =IF(OR(converge=0, RUN_RAM=0),0,RAMData(converge,$A39*s_per_year, sigma, nu, omega, 0, nsum, Calcs_pvals_path1_species2)) ->  | D39: =IF(OR(converge=0, RUN_RAM=0),0,RAMData(converge,$A39*s_per_year, sigma, nu, omega, 0, nsum, Calcs_pvals_path1_species3)) ->  | E39: =IF(OR(converge=0, RUN_RAM=0),0,RAMData(converge,$A39*s_per_year, sigma, nu, omega, 0, nsum, Calcs_pvals_path1_species4)) ->  | H39: =RAMMaxTime(converge,H$41, sigma, nu, omega, 0, nsum, Calcs_pvals_path1_species1,$H37,H$40,H$41,H$42)/s_per_year ->  | I39: =RAMData(converge,H$39*s_per_year, sigma, nu, omega, 0, nsum, Calcs_pvals_path1_species1) ->  | J39: =RAMMaxTime(converge,J$41, sigma, nu, omega, 0, nsum, Calcs_pvals_path1_species2,$H37,J$40,J$41,J$42)/s_per_year ->  | K39: =RAMData(converge,J$39*s_per_year, sigma, nu, omega, 0, nsum, Calcs_pvals_path1_species2) ->  | L39: =RAMMaxTime(converge,L$41, sigma, nu, omega, 0, nsum, Calcs_pvals_path1_species3,$H37,L$40,L$41,L$42)/s_per_year ->  | M39: =RAMData(converge,L$39*s_per_year, sigma, nu, omega, 0, nsum, Calcs_pvals_path1_species3) ->  | N39: =RAMMaxTime(converge,N$41, sigma, nu, omega, 0, nsum, Calcs_pvals_path1_species4,$H37,N$40,N$41,N$42)/s_per_year ->  | O39: =RAMData(converge,N$39*s_per_year, sigma, nu, omega, 0, nsum, Calcs_pvals_path1_species4) -> 
A40: 2.9 | B40: =IF(OR(converge=0, RUN_RAM=0),0,RAMData(converge,$A40*s_per_year, sigma, nu, omega, 0, nsum, Calcs_pvals_path1_species1)) ->  | C40: =IF(OR(converge=0, RUN_RAM=0),0,RAMData(converge,$A40*s_per_year, sigma, nu, omega, 0, nsum, Calcs_pvals_path1_species2)) ->  | D40: =IF(OR(converge=0, RUN_RAM=0),0,RAMData(converge,$A40*s_per_year, sigma, nu, omega, 0, nsum, Calcs_pvals_path1_species3)) ->  | E40: =IF(OR(converge=0, RUN_RAM=0),0,RAMData(converge,$A40*s_per_year, sigma, nu, omega, 0, nsum, Calcs_pvals_path1_species4)) ->  | H40: 1 | J40: 1 | L40: 1 | N40: 1
A41: 3 | B41: =IF(OR(converge=0, RUN_RAM=0),0,RAMData(converge,$A41*s_per_year, sigma, nu, omega, 0, nsum, Calcs_pvals_path1_species1)) ->  | C41: =IF(OR(converge=0, RUN_RAM=0),0,RAMData(converge,$A41*s_per_year, sigma, nu, omega, 0, nsum, Calcs_pvals_path1_species2)) ->  | D41: =IF(OR(converge=0, RUN_RAM=0),0,RAMData(converge,$A41*s_per_year, sigma, nu, omega, 0, nsum, Calcs_pvals_path1_species3)) ->  | E41: =IF(OR(converge=0, RUN_RAM=0),0,RAMData(converge,$A41*s_per_year, sigma, nu, omega, 0, nsum, Calcs_pvals_path1_species4)) ->  | H41: =Attenuation!C33*(Pathways!I10/Pathways!I8) -> 2.526406268e+11 | J41: =Attenuation!C63*(Pathways!I10/Pathways!I8) -> 31643077.42 | L41: =Attenuation!E93*(Pathways!$I$10/Pathways!$I$8) -> 2.460893614e+12 | N41: =Attenuation!E123*(Pathways!$I$10/Pathways!$I$8) -> 1.550416439e+14
A42: 3.1 | B42: =IF(OR(converge=0, RUN_RAM=0),0,RAMData(converge,$A42*s_per_year, sigma, nu, omega, 0, nsum, Calcs_pvals_path1_species1)) ->  | C42: =IF(OR(converge=0, RUN_RAM=0),0,RAMData(converge,$A42*s_per_year, sigma, nu, omega, 0, nsum, Calcs_pvals_path1_species2)) ->  | D42: =IF(OR(converge=0, RUN_RAM=0),0,RAMData(converge,$A42*s_per_year, sigma, nu, omega, 0, nsum, Calcs_pvals_path1_species3)) ->  | E42: =IF(OR(converge=0, RUN_RAM=0),0,RAMData(converge,$A42*s_per_year, sigma, nu, omega, 0, nsum, Calcs_pvals_path1_species4)) ->  | H42: 1e-20 | J42: 1e-20 | L42: 1e-20 | N42: 1e-20
A43: 3.2 | B43: =IF(OR(converge=0, RUN_RAM=0),0,RAMData(converge,$A43*s_per_year, sigma, nu, omega, 0, nsum, Calcs_pvals_path1_species1)) ->  | C43: =IF(OR(converge=0, RUN_RAM=0),0,RAMData(converge,$A43*s_per_year, sigma, nu, omega, 0, nsum, Calcs_pvals_path1_species2)) ->  | D43: =IF(OR(converge=0, RUN_RAM=0),0,RAMData(converge,$A43*s_per_year, sigma, nu, omega, 0, nsum, Calcs_pvals_path1_species3)) ->  | E43: =IF(OR(converge=0, RUN_RAM=0),0,RAMData(converge,$A43*s_per_year, sigma, nu, omega, 0, nsum, Calcs_pvals_path1_species4)) ->  | H43: =H41/s_per_year -> 8005.698367 | J43: =J41/s_per_year -> 1.002708616 | L43: =L41/s_per_year -> 77981.01295 | N43: =N41/s_per_year -> 4912973.225
A44: 3.3 | B44: =IF(OR(converge=0, RUN_RAM=0),0,RAMData(converge,$A44*s_per_year, sigma, nu, omega, 0, nsum, Calcs_pvals_path1_species1)) ->  | C44: =IF(OR(converge=0, RUN_RAM=0),0,RAMData(converge,$A44*s_per_year, sigma, nu, omega, 0, nsum, Calcs_pvals_path1_species2)) ->  | D44: =IF(OR(converge=0, RUN_RAM=0),0,RAMData(converge,$A44*s_per_year, sigma, nu, omega, 0, nsum, Calcs_pvals_path1_species3)) ->  | E44: =IF(OR(converge=0, RUN_RAM=0),0,RAMData(converge,$A44*s_per_year, sigma, nu, omega, 0, nsum, Calcs_pvals_path1_species4)) -> 
A45: 3.4 | B45: =IF(OR(converge=0, RUN_RAM=0),0,RAMData(converge,$A45*s_per_year, sigma, nu, omega, 0, nsum, Calcs_pvals_path1_species1)) ->  | C45: =IF(OR(converge=0, RUN_RAM=0),0,RAMData(converge,$A45*s_per_year, sigma, nu, omega, 0, nsum, Calcs_pvals_path1_species2)) ->  | D45: =IF(OR(converge=0, RUN_RAM=0),0,RAMData(converge,$A45*s_per_year, sigma, nu, omega, 0, nsum, Calcs_pvals_path1_species3)) ->  | E45: =IF(OR(converge=0, RUN_RAM=0),0,RAMData(converge,$A45*s_per_year, sigma, nu, omega, 0, nsum, Calcs_pvals_path1_species4)) -> 
A46: 3.5 | B46: =IF(OR(converge=0, RUN_RAM=0),0,RAMData(converge,$A46*s_per_year, sigma, nu, omega, 0, nsum, Calcs_pvals_path1_species1)) ->  | C46: =IF(OR(converge=0, RUN_RAM=0),0,RAMData(converge,$A46*s_per_year, sigma, nu, omega, 0, nsum, Calcs_pvals_path1_species2)) ->  | D46: =IF(OR(converge=0, RUN_RAM=0),0,RAMData(converge,$A46*s_per_year, sigma, nu, omega, 0, nsum, Calcs_pvals_path1_species3)) ->  | E46: =IF(OR(converge=0, RUN_RAM=0),0,RAMData(converge,$A46*s_per_year, sigma, nu, omega, 0, nsum, Calcs_pvals_path1_species4)) -> 
A47: 3.6 | B47: =IF(OR(converge=0, RUN_RAM=0),0,RAMData(converge,$A47*s_per_year, sigma, nu, omega, 0, nsum, Calcs_pvals_path1_species1)) ->  | C47: =IF(OR(converge=0, RUN_RAM=0),0,RAMData(converge,$A47*s_per_year, sigma, nu, omega, 0, nsum, Calcs_pvals_path1_species2)) ->  | D47: =IF(OR(converge=0, RUN_RAM=0),0,RAMData(converge,$A47*s_per_year, sigma, nu, omega, 0, nsum, Calcs_pvals_path1_species3)) ->  | E47: =IF(OR(converge=0, RUN_RAM=0),0,RAMData(converge,$A47*s_per_year, sigma, nu, omega, 0, nsum, Calcs_pvals_path1_species4)) -> 
A48: 3.7 | B48: =IF(OR(converge=0, RUN_RAM=0),0,RAMData(converge,$A48*s_per_year, sigma, nu, omega, 0, nsum, Calcs_pvals_path1_species1)) ->  | C48: =IF(OR(converge=0, RUN_RAM=0),0,RAMData(converge,$A48*s_per_year, sigma, nu, omega, 0, nsum, Calcs_pvals_path1_species2)) ->  | D48: =IF(OR(converge=0, RUN_RAM=0),0,RAMData(converge,$A48*s_per_year, sigma, nu, omega, 0, nsum, Calcs_pvals_path1_species3)) ->  | E48: =IF(OR(converge=0, RUN_RAM=0),0,RAMData(converge,$A48*s_per_year, sigma, nu, omega, 0, nsum, Calcs_pvals_path1_species4)) -> 
A49: 3.8 | B49: =IF(OR(converge=0, RUN_RAM=0),0,RAMData(converge,$A49*s_per_year, sigma, nu, omega, 0, nsum, Calcs_pvals_path1_species1)) ->  | C49: =IF(OR(converge=0, RUN_RAM=0),0,RAMData(converge,$A49*s_per_year, sigma, nu, omega, 0, nsum, Calcs_pvals_path1_species2)) ->  | D49: =IF(OR(converge=0, RUN_RAM=0),0,RAMData(converge,$A49*s_per_year, sigma, nu, omega, 0, nsum, Calcs_pvals_path1_species3)) ->  | E49: =IF(OR(converge=0, RUN_RAM=0),0,RAMData(converge,$A49*s_per_year, sigma, nu, omega, 0, nsum, Calcs_pvals_path1_species4)) -> 
A50: 3.9 | B50: =IF(OR(converge=0, RUN_RAM=0),0,RAMData(converge,$A50*s_per_year, sigma, nu, omega, 0, nsum, Calcs_pvals_path1_species1)) ->  | C50: =IF(OR(converge=0, RUN_RAM=0),0,RAMData(converge,$A50*s_per_year, sigma, nu, omega, 0, nsum, Calcs_pvals_path1_species2)) ->  | D50: =IF(OR(converge=0, RUN_RAM=0),0,RAMData(converge,$A50*s_per_year, sigma, nu, omega, 0, nsum, Calcs_pvals_path1_species3)) ->  | E50: =IF(OR(converge=0, RUN_RAM=0),0,RAMData(converge,$A50*s_per_year, sigma, nu, omega, 0, nsum, Calcs_pvals_path1_species4)) -> 
A51: 4 | B51: =IF(OR(converge=0, RUN_RAM=0),0,RAMData(converge,$A51*s_per_year, sigma, nu, omega, 0, nsum, Calcs_pvals_path1_species1)) ->  | C51: =IF(OR(converge=0, RUN_RAM=0),0,RAMData(converge,$A51*s_per_year, sigma, nu, omega, 0, nsum, Calcs_pvals_path1_species2)) ->  | D51: =IF(OR(converge=0, RUN_RAM=0),0,RAMData(converge,$A51*s_per_year, sigma, nu, omega, 0, nsum, Calcs_pvals_path1_species3)) ->  | E51: =IF(OR(converge=0, RUN_RAM=0),0,RAMData(converge,$A51*s_per_year, sigma, nu, omega, 0, nsum, Calcs_pvals_path1_species4)) -> 
A52: 4.1 | B52: =IF(OR(converge=0, RUN_RAM=0),0,RAMData(converge,$A52*s_per_year, sigma, nu, omega, 0, nsum, Calcs_pvals_path1_species1)) ->  | C52: =IF(OR(converge=0, RUN_RAM=0),0,RAMData(converge,$A52*s_per_year, sigma, nu, omega, 0, nsum, Calcs_pvals_path1_species2)) ->  | D52: =IF(OR(converge=0, RUN_RAM=0),0,RAMData(converge,$A52*s_per_year, sigma, nu, omega, 0, nsum, Calcs_pvals_path1_species3)) ->  | E52: =IF(OR(converge=0, RUN_RAM=0),0,RAMData(converge,$A52*s_per_year, sigma, nu, omega, 0, nsum, Calcs_pvals_path1_species4)) -> 
A53: 4.2 | B53: =IF(OR(converge=0, RUN_RAM=0),0,RAMData(converge,$A53*s_per_year, sigma, nu, omega, 0, nsum, Calcs_pvals_path1_species1)) ->  | C53: =IF(OR(converge=0, RUN_RAM=0),0,RAMData(converge,$A53*s_per_year, sigma, nu, omega, 0, nsum, Calcs_pvals_path1_species2)) ->  | D53: =IF(OR(converge=0, RUN_RAM=0),0,RAMData(converge,$A53*s_per_year, sigma, nu, omega, 0, nsum, Calcs_pvals_path1_species3)) ->  | E53: =IF(OR(converge=0, RUN_RAM=0),0,RAMData(converge,$A53*s_per_year, sigma, nu, omega, 0, nsum, Calcs_pvals_path1_species4)) -> 
A54: 4.3 | B54: =IF(OR(converge=0, RUN_RAM=0),0,RAMData(converge,$A54*s_per_year, sigma, nu, omega, 0, nsum, Calcs_pvals_path1_species1)) ->  | C54: =IF(OR(converge=0, RUN_RAM=0),0,RAMData(converge,$A54*s_per_year, sigma, nu, omega, 0, nsum, Calcs_pvals_path1_species2)) ->  | D54: =IF(OR(converge=0, RUN_RAM=0),0,RAMData(converge,$A54*s_per_year, sigma, nu, omega, 0, nsum, Calcs_pvals_path1_species3)) ->  | E54: =IF(OR(converge=0, RUN_RAM=0),0,RAMData(converge,$A54*s_per_year, sigma, nu, omega, 0, nsum, Calcs_pvals_path1_species4)) -> 
A55: 4.4 | B55: =IF(OR(converge=0, RUN_RAM=0),0,RAMData(converge,$A55*s_per_year, sigma, nu, omega, 0, nsum, Calcs_pvals_path1_species1)) ->  | C55: =IF(OR(converge=0, RUN_RAM=0),0,RAMData(converge,$A55*s_per_year, sigma, nu, omega, 0, nsum, Calcs_pvals_path1_species2)) ->  | D55: =IF(OR(converge=0, RUN_RAM=0),0,RAMData(converge,$A55*s_per_year, sigma, nu, omega, 0, nsum, Calcs_pvals_path1_species3)) ->  | E55: =IF(OR(converge=0, RUN_RAM=0),0,RAMData(converge,$A55*s_per_year, sigma, nu, omega, 0, nsum, Calcs_pvals_path1_species4)) -> 
A56: 4.5 | B56: =IF(OR(converge=0, RUN_RAM=0),0,RAMData(converge,$A56*s_per_year, sigma, nu, omega, 0, nsum, Calcs_pvals_path1_species1)) ->  | C56: =IF(OR(converge=0, RUN_RAM=0),0,RAMData(converge,$A56*s_per_year, sigma, nu, omega, 0, nsum, Calcs_pvals_path1_species2)) ->  | D56: =IF(OR(converge=0, RUN_RAM=0),0,RAMData(converge,$A56*s_per_year, sigma, nu, omega, 0, nsum, Calcs_pvals_path1_species3)) ->  | E56: =IF(OR(converge=0, RUN_RAM=0),0,RAMData(converge,$A56*s_per_year, sigma, nu, omega, 0, nsum, Calcs_pvals_path1_species4)) -> 
A57: 4.6 | B57: =IF(OR(converge=0, RUN_RAM=0),0,RAMData(converge,$A57*s_per_year, sigma, nu, omega, 0, nsum, Calcs_pvals_path1_species1)) ->  | C57: =IF(OR(converge=0, RUN_RAM=0),0,RAMData(converge,$A57*s_per_year, sigma, nu, omega, 0, nsum, Calcs_pvals_path1_species2)) ->  | D57: =IF(OR(converge=0, RUN_RAM=0),0,RAMData(converge,$A57*s_per_year, sigma, nu, omega, 0, nsum, Calcs_pvals_path1_species3)) ->  | E57: =IF(OR(converge=0, RUN_RAM=0),0,RAMData(converge,$A57*s_per_year, sigma, nu, omega, 0, nsum, Calcs_pvals_path1_species4)) -> 
A58: 4.7 | B58: =IF(OR(converge=0, RUN_RAM=0),0,RAMData(converge,$A58*s_per_year, sigma, nu, omega, 0, nsum, Calcs_pvals_path1_species1)) ->  | C58: =IF(OR(converge=0, RUN_RAM=0),0,RAMData(converge,$A58*s_per_year, sigma, nu, omega, 0, nsum, Calcs_pvals_path1_species2)) ->  | D58: =IF(OR(converge=0, RUN_RAM=0),0,RAMData(converge,$A58*s_per_year, sigma, nu, omega, 0, nsum, Calcs_pvals_path1_species3)) ->  | E58: =IF(OR(converge=0, RUN_RAM=0),0,RAMData(converge,$A58*s_per_year, sigma, nu, omega, 0, nsum, Calcs_pvals_path1_species4)) -> 
A59: 4.8 | B59: =IF(OR(converge=0, RUN_RAM=0),0,RAMData(converge,$A59*s_per_year, sigma, nu, omega, 0, nsum, Calcs_pvals_path1_species1)) ->  | C59: =IF(OR(converge=0, RUN_RAM=0),0,RAMData(converge,$A59*s_per_year, sigma, nu, omega, 0, nsum, Calcs_pvals_path1_species2)) ->  | D59: =IF(OR(converge=0, RUN_RAM=0),0,RAMData(converge,$A59*s_per_year, sigma, nu, omega, 0, nsum, Calcs_pvals_path1_species3)) ->  | E59: =IF(OR(converge=0, RUN_RAM=0),0,RAMData(converge,$A59*s_per_year, sigma, nu, omega, 0, nsum, Calcs_pvals_path1_species4)) -> 
A60: 4.9 | B60: =IF(OR(converge=0, RUN_RAM=0),0,RAMData(converge,$A60*s_per_year, sigma, nu, omega, 0, nsum, Calcs_pvals_path1_species1)) ->  | C60: =IF(OR(converge=0, RUN_RAM=0),0,RAMData(converge,$A60*s_per_year, sigma, nu, omega, 0, nsum, Calcs_pvals_path1_species2)) ->  | D60: =IF(OR(converge=0, RUN_RAM=0),0,RAMData(converge,$A60*s_per_year, sigma, nu, omega, 0, nsum, Calcs_pvals_path1_species3)) ->  | E60: =IF(OR(converge=0, RUN_RAM=0),0,RAMData(converge,$A60*s_per_year, sigma, nu, omega, 0, nsum, Calcs_pvals_path1_species4)) -> 
A61: 5 | B61: =IF(OR(converge=0, RUN_RAM=0),0,RAMData(converge,$A61*s_per_year, sigma, nu, omega, 0, nsum, Calcs_pvals_path1_species1)) ->  | C61: =IF(OR(converge=0, RUN_RAM=0),0,RAMData(converge,$A61*s_per_year, sigma, nu, omega, 0, nsum, Calcs_pvals_path1_species2)) ->  | D61: =IF(OR(converge=0, RUN_RAM=0),0,RAMData(converge,$A61*s_per_year, sigma, nu, omega, 0, nsum, Calcs_pvals_path1_species3)) ->  | E61: =IF(OR(converge=0, RUN_RAM=0),0,RAMData(converge,$A61*s_per_year, sigma, nu, omega, 0, nsum, Calcs_pvals_path1_species4)) -> 
A62: 5.1 | B62: =IF(OR(converge=0, RUN_RAM=0),0,RAMData(converge,$A62*s_per_year, sigma, nu, omega, 0, nsum, Calcs_pvals_path1_species1)) ->  | C62: =IF(OR(converge=0, RUN_RAM=0),0,RAMData(converge,$A62*s_per_year, sigma, nu, omega, 0, nsum, Calcs_pvals_path1_species2)) ->  | D62: =IF(OR(converge=0, RUN_RAM=0),0,RAMData(converge,$A62*s_per_year, sigma, nu, omega, 0, nsum, Calcs_pvals_path1_species3)) ->  | E62: =IF(OR(converge=0, RUN_RAM=0),0,RAMData(converge,$A62*s_per_year, sigma, nu, omega, 0, nsum, Calcs_pvals_path1_species4)) -> 
A63: 5.2 | B63: =IF(OR(converge=0, RUN_RAM=0),0,RAMData(converge,$A63*s_per_year, sigma, nu, omega, 0, nsum, Calcs_pvals_path1_species1)) ->  | C63: =IF(OR(converge=0, RUN_RAM=0),0,RAMData(converge,$A63*s_per_year, sigma, nu, omega, 0, nsum, Calcs_pvals_path1_species2)) ->  | D63: =IF(OR(converge=0, RUN_RAM=0),0,RAMData(converge,$A63*s_per_year, sigma, nu, omega, 0, nsum, Calcs_pvals_path1_species3)) ->  | E63: =IF(OR(converge=0, RUN_RAM=0),0,RAMData(converge,$A63*s_per_year, sigma, nu, omega, 0, nsum, Calcs_pvals_path1_species4)) -> 
A64: 5.3 | B64: =IF(OR(converge=0, RUN_RAM=0),0,RAMData(converge,$A64*s_per_year, sigma, nu, omega, 0, nsum, Calcs_pvals_path1_species1)) ->  | C64: =IF(OR(converge=0, RUN_RAM=0),0,RAMData(converge,$A64*s_per_year, sigma, nu, omega, 0, nsum, Calcs_pvals_path1_species2)) ->  | D64: =IF(OR(converge=0, RUN_RAM=0),0,RAMData(converge,$A64*s_per_year, sigma, nu, omega, 0, nsum, Calcs_pvals_path1_species3)) ->  | E64: =IF(OR(converge=0, RUN_RAM=0),0,RAMData(converge,$A64*s_per_year, sigma, nu, omega, 0, nsum, Calcs_pvals_path1_species4)) -> 
A65: 5.4 | B65: =IF(OR(converge=0, RUN_RAM=0),0,RAMData(converge,$A65*s_per_year, sigma, nu, omega, 0, nsum, Calcs_pvals_path1_species1)) ->  | C65: =IF(OR(converge=0, RUN_RAM=0),0,RAMData(converge,$A65*s_per_year, sigma, nu, omega, 0, nsum, Calcs_pvals_path1_species2)) ->  | D65: =IF(OR(converge=0, RUN_RAM=0),0,RAMData(converge,$A65*s_per_year, sigma, nu, omega, 0, nsum, Calcs_pvals_path1_species3)) ->  | E65: =IF(OR(converge=0, RUN_RAM=0),0,RAMData(converge,$A65*s_per_year, sigma, nu, omega, 0, nsum, Calcs_pvals_path1_species4)) -> 
A66: 5.5 | B66: =IF(OR(converge=0, RUN_RAM=0),0,RAMData(converge,$A66*s_per_year, sigma, nu, omega, 0, nsum, Calcs_pvals_path1_species1)) ->  | C66: =IF(OR(converge=0, RUN_RAM=0),0,RAMData(converge,$A66*s_per_year, sigma, nu, omega, 0, nsum, Calcs_pvals_path1_species2)) ->  | D66: =IF(OR(converge=0, RUN_RAM=0),0,RAMData(converge,$A66*s_per_year, sigma, nu, omega, 0, nsum, Calcs_pvals_path1_species3)) ->  | E66: =IF(OR(converge=0, RUN_RAM=0),0,RAMData(converge,$A66*s_per_year, sigma, nu, omega, 0, nsum, Calcs_pvals_path1_species4)) -> 
A67: 5.6 | B67: =IF(OR(converge=0, RUN_RAM=0),0,RAMData(converge,$A67*s_per_year, sigma, nu, omega, 0, nsum, Calcs_pvals_path1_species1)) ->  | C67: =IF(OR(converge=0, RUN_RAM=0),0,RAMData(converge,$A67*s_per_year, sigma, nu, omega, 0, nsum, Calcs_pvals_path1_species2)) ->  | D67: =IF(OR(converge=0, RUN_RAM=0),0,RAMData(converge,$A67*s_per_year, sigma, nu, omega, 0, nsum, Calcs_pvals_path1_species3)) ->  | E67: =IF(OR(converge=0, RUN_RAM=0),0,RAMData(converge,$A67*s_per_year, sigma, nu, omega, 0, nsum, Calcs_pvals_path1_species4)) -> 
A68: 5.7 | B68: =IF(OR(converge=0, RUN_RAM=0),0,RAMData(converge,$A68*s_per_year, sigma, nu, omega, 0, nsum, Calcs_pvals_path1_species1)) ->  | C68: =IF(OR(converge=0, RUN_RAM=0),0,RAMData(converge,$A68*s_per_year, sigma, nu, omega, 0, nsum, Calcs_pvals_path1_species2)) ->  | D68: =IF(OR(converge=0, RUN_RAM=0),0,RAMData(converge,$A68*s_per_year, sigma, nu, omega, 0, nsum, Calcs_pvals_path1_species3)) ->  | E68: =IF(OR(converge=0, RUN_RAM=0),0,RAMData(converge,$A68*s_per_year, sigma, nu, omega, 0, nsum, Calcs_pvals_path1_species4)) -> 
A69: 5.8 | B69: =IF(OR(converge=0, RUN_RAM=0),0,RAMData(converge,$A69*s_per_year, sigma, nu, omega, 0, nsum, Calcs_pvals_path1_species1)) ->  | C69: =IF(OR(converge=0, RUN_RAM=0),0,RAMData(converge,$A69*s_per_year, sigma, nu, omega, 0, nsum, Calcs_pvals_path1_species2)) ->  | D69: =IF(OR(converge=0, RUN_RAM=0),0,RAMData(converge,$A69*s_per_year, sigma, nu, omega, 0, nsum, Calcs_pvals_path1_species3)) ->  | E69: =IF(OR(converge=0, RUN_RAM=0),0,RAMData(converge,$A69*s_per_year, sigma, nu, omega, 0, nsum, Calcs_pvals_path1_species4)) -> 
A70: 5.9 | B70: =IF(OR(converge=0, RUN_RAM=0),0,RAMData(converge,$A70*s_per_year, sigma, nu, omega, 0, nsum, Calcs_pvals_path1_species1)) ->  | C70: =IF(OR(converge=0, RUN_RAM=0),0,RAMData(converge,$A70*s_per_year, sigma, nu, omega, 0, nsum, Calcs_pvals_path1_species2)) ->  | D70: =IF(OR(converge=0, RUN_RAM=0),0,RAMData(converge,$A70*s_per_year, sigma, nu, omega, 0, nsum, Calcs_pvals_path1_species3)) ->  | E70: =IF(OR(converge=0, RUN_RAM=0),0,RAMData(converge,$A70*s_per_year, sigma, nu, omega, 0, nsum, Calcs_pvals_path1_species4)) -> 
A71: 6 | B71: =IF(OR(converge=0, RUN_RAM=0),0,RAMData(converge,$A71*s_per_year, sigma, nu, omega, 0, nsum, Calcs_pvals_path1_species1)) ->  | C71: =IF(OR(converge=0, RUN_RAM=0),0,RAMData(converge,$A71*s_per_year, sigma, nu, omega, 0, nsum, Calcs_pvals_path1_species2)) ->  | D71: =IF(OR(converge=0, RUN_RAM=0),0,RAMData(converge,$A71*s_per_year, sigma, nu, omega, 0, nsum, Calcs_pvals_path1_species3)) ->  | E71: =IF(OR(converge=0, RUN_RAM=0),0,RAMData(converge,$A71*s_per_year, sigma, nu, omega, 0, nsum, Calcs_pvals_path1_species4)) -> 
A72: 6.1 | B72: =IF(OR(converge=0, RUN_RAM=0),0,RAMData(converge,$A72*s_per_year, sigma, nu, omega, 0, nsum, Calcs_pvals_path1_species1)) ->  | C72: =IF(OR(converge=0, RUN_RAM=0),0,RAMData(converge,$A72*s_per_year, sigma, nu, omega, 0, nsum, Calcs_pvals_path1_species2)) ->  | D72: =IF(OR(converge=0, RUN_RAM=0),0,RAMData(converge,$A72*s_per_year, sigma, nu, omega, 0, nsum, Calcs_pvals_path1_species3)) ->  | E72: =IF(OR(converge=0, RUN_RAM=0),0,RAMData(converge,$A72*s_per_year, sigma, nu, omega, 0, nsum, Calcs_pvals_path1_species4)) -> 
A73: 6.2 | B73: =IF(OR(converge=0, RUN_RAM=0),0,RAMData(converge,$A73*s_per_year, sigma, nu, omega, 0, nsum, Calcs_pvals_path1_species1)) ->  | C73: =IF(OR(converge=0, RUN_RAM=0),0,RAMData(converge,$A73*s_per_year, sigma, nu, omega, 0, nsum, Calcs_pvals_path1_species2)) ->  | D73: =IF(OR(converge=0, RUN_RAM=0),0,RAMData(converge,$A73*s_per_year, sigma, nu, omega, 0, nsum, Calcs_pvals_path1_species3)) ->  | E73: =IF(OR(converge=0, RUN_RAM=0),0,RAMData(converge,$A73*s_per_year, sigma, nu, omega, 0, nsum, Calcs_pvals_path1_species4)) -> 
A74: 6.3 | B74: =IF(OR(converge=0, RUN_RAM=0),0,RAMData(converge,$A74*s_per_year, sigma, nu, omega, 0, nsum, Calcs_pvals_path1_species1)) ->  | C74: =IF(OR(converge=0, RUN_RAM=0),0,RAMData(converge,$A74*s_per_year, sigma, nu, omega, 0, nsum, Calcs_pvals_path1_species2)) ->  | D74: =IF(OR(converge=0, RUN_RAM=0),0,RAMData(converge,$A74*s_per_year, sigma, nu, omega, 0, nsum, Calcs_pvals_path1_species3)) ->  | E74: =IF(OR(converge=0, RUN_RAM=0),0,RAMData(converge,$A74*s_per_year, sigma, nu, omega, 0, nsum, Calcs_pvals_path1_species4)) -> 
A75: 6.4 | B75: =IF(OR(converge=0, RUN_RAM=0),0,RAMData(converge,$A75*s_per_year, sigma, nu, omega, 0, nsum, Calcs_pvals_path1_species1)) ->  | C75: =IF(OR(converge=0, RUN_RAM=0),0,RAMData(converge,$A75*s_per_year, sigma, nu, omega, 0, nsum, Calcs_pvals_path1_species2)) ->  | D75: =IF(OR(converge=0, RUN_RAM=0),0,RAMData(converge,$A75*s_per_year, sigma, nu, omega, 0, nsum, Calcs_pvals_path1_species3)) ->  | E75: =IF(OR(converge=0, RUN_RAM=0),0,RAMData(converge,$A75*s_per_year, sigma, nu, omega, 0, nsum, Calcs_pvals_path1_species4)) -> 
A76: 6.5 | B76: =IF(OR(converge=0, RUN_RAM=0),0,RAMData(converge,$A76*s_per_year, sigma, nu, omega, 0, nsum, Calcs_pvals_path1_species1)) ->  | C76: =IF(OR(converge=0, RUN_RAM=0),0,RAMData(converge,$A76*s_per_year, sigma, nu, omega, 0, nsum, Calcs_pvals_path1_species2)) ->  | D76: =IF(OR(converge=0, RUN_RAM=0),0,RAMData(converge,$A76*s_per_year, sigma, nu, omega, 0, nsum, Calcs_pvals_path1_species3)) ->  | E76: =IF(OR(converge=0, RUN_RAM=0),0,RAMData(converge,$A76*s_per_year, sigma, nu, omega, 0, nsum, Calcs_pvals_path1_species4)) -> 
A77: 6.6 | B77: =IF(OR(converge=0, RUN_RAM=0),0,RAMData(converge,$A77*s_per_year, sigma, nu, omega, 0, nsum, Calcs_pvals_path1_species1)) ->  | C77: =IF(OR(converge=0, RUN_RAM=0),0,RAMData(converge,$A77*s_per_year, sigma, nu, omega, 0, nsum, Calcs_pvals_path1_species2)) ->  | D77: =IF(OR(converge=0, RUN_RAM=0),0,RAMData(converge,$A77*s_per_year, sigma, nu, omega, 0, nsum, Calcs_pvals_path1_species3)) ->  | E77: =IF(OR(converge=0, RUN_RAM=0),0,RAMData(converge,$A77*s_per_year, sigma, nu, omega, 0, nsum, Calcs_pvals_path1_species4)) -> 
A78: 6.7 | B78: =IF(OR(converge=0, RUN_RAM=0),0,RAMData(converge,$A78*s_per_year, sigma, nu, omega, 0, nsum, Calcs_pvals_path1_species1)) ->  | C78: =IF(OR(converge=0, RUN_RAM=0),0,RAMData(converge,$A78*s_per_year, sigma, nu, omega, 0, nsum, Calcs_pvals_path1_species2)) ->  | D78: =IF(OR(converge=0, RUN_RAM=0),0,RAMData(converge,$A78*s_per_year, sigma, nu, omega, 0, nsum, Calcs_pvals_path1_species3)) ->  | E78: =IF(OR(converge=0, RUN_RAM=0),0,RAMData(converge,$A78*s_per_year, sigma, nu, omega, 0, nsum, Calcs_pvals_path1_species4)) -> 
A79: 6.8 | B79: =IF(OR(converge=0, RUN_RAM=0),0,RAMData(converge,$A79*s_per_year, sigma, nu, omega, 0, nsum, Calcs_pvals_path1_species1)) ->  | C79: =IF(OR(converge=0, RUN_RAM=0),0,RAMData(converge,$A79*s_per_year, sigma, nu, omega, 0, nsum, Calcs_pvals_path1_species2)) ->  | D79: =IF(OR(converge=0, RUN_RAM=0),0,RAMData(converge,$A79*s_per_year, sigma, nu, omega, 0, nsum, Calcs_pvals_path1_species3)) ->  | E79: =IF(OR(converge=0, RUN_RAM=0),0,RAMData(converge,$A79*s_per_year, sigma, nu, omega, 0, nsum, Calcs_pvals_path1_species4)) -> 
A80: 6.9 | B80: =IF(OR(converge=0, RUN_RAM=0),0,RAMData(converge,$A80*s_per_year, sigma, nu, omega, 0, nsum, Calcs_pvals_path1_species1)) ->  | C80: =IF(OR(converge=0, RUN_RAM=0),0,RAMData(converge,$A80*s_per_year, sigma, nu, omega, 0, nsum, Calcs_pvals_path1_species2)) ->  | D80: =IF(OR(converge=0, RUN_RAM=0),0,RAMData(converge,$A80*s_per_year, sigma, nu, omega, 0, nsum, Calcs_pvals_path1_species3)) ->  | E80: =IF(OR(converge=0, RUN_RAM=0),0,RAMData(converge,$A80*s_per_year, sigma, nu, omega, 0, nsum, Calcs_pvals_path1_species4)) -> 
A81: 7 | B81: =IF(OR(converge=0, RUN_RAM=0),0,RAMData(converge,$A81*s_per_year, sigma, nu, omega, 0, nsum, Calcs_pvals_path1_species1)) ->  | C81: =IF(OR(converge=0, RUN_RAM=0),0,RAMData(converge,$A81*s_per_year, sigma, nu, omega, 0, nsum, Calcs_pvals_path1_species2)) ->  | D81: =IF(OR(converge=0, RUN_RAM=0),0,RAMData(converge,$A81*s_per_year, sigma, nu, omega, 0, nsum, Calcs_pvals_path1_species3)) ->  | E81: =IF(OR(converge=0, RUN_RAM=0),0,RAMData(converge,$A81*s_per_year, sigma, nu, omega, 0, nsum, Calcs_pvals_path1_species4)) -> 
A82: 7.1 | B82: =IF(OR(converge=0, RUN_RAM=0),0,RAMData(converge,$A82*s_per_year, sigma, nu, omega, 0, nsum, Calcs_pvals_path1_species1)) ->  | C82: =IF(OR(converge=0, RUN_RAM=0),0,RAMData(converge,$A82*s_per_year, sigma, nu, omega, 0, nsum, Calcs_pvals_path1_species2)) ->  | D82: =IF(OR(converge=0, RUN_RAM=0),0,RAMData(converge,$A82*s_per_year, sigma, nu, omega, 0, nsum, Calcs_pvals_path1_species3)) ->  | E82: =IF(OR(converge=0, RUN_RAM=0),0,RAMData(converge,$A82*s_per_year, sigma, nu, omega, 0, nsum, Calcs_pvals_path1_species4)) -> 
A83: 7.2 | B83: =IF(OR(converge=0, RUN_RAM=0),0,RAMData(converge,$A83*s_per_year, sigma, nu, omega, 0, nsum, Calcs_pvals_path1_species1)) ->  | C83: =IF(OR(converge=0, RUN_RAM=0),0,RAMData(converge,$A83*s_per_year, sigma, nu, omega, 0, nsum, Calcs_pvals_path1_species2)) ->  | D83: =IF(OR(converge=0, RUN_RAM=0),0,RAMData(converge,$A83*s_per_year, sigma, nu, omega, 0, nsum, Calcs_pvals_path1_species3)) ->  | E83: =IF(OR(converge=0, RUN_RAM=0),0,RAMData(converge,$A83*s_per_year, sigma, nu, omega, 0, nsum, Calcs_pvals_path1_species4)) -> 
A84: 7.3 | B84: =IF(OR(converge=0, RUN_RAM=0),0,RAMData(converge,$A84*s_per_year, sigma, nu, omega, 0, nsum, Calcs_pvals_path1_species1)) ->  | C84: =IF(OR(converge=0, RUN_RAM=0),0,RAMData(converge,$A84*s_per_year, sigma, nu, omega, 0, nsum, Calcs_pvals_path1_species2)) ->  | D84: =IF(OR(converge=0, RUN_RAM=0),0,RAMData(converge,$A84*s_per_year, sigma, nu, omega, 0, nsum, Calcs_pvals_path1_species3)) ->  | E84: =IF(OR(converge=0, RUN_RAM=0),0,RAMData(converge,$A84*s_per_year, sigma, nu, omega, 0, nsum, Calcs_pvals_path1_species4)) -> 
A85: 7.4 | B85: =IF(OR(converge=0, RUN_RAM=0),0,RAMData(converge,$A85*s_per_year, sigma, nu, omega, 0, nsum, Calcs_pvals_path1_species1)) ->  | C85: =IF(OR(converge=0, RUN_RAM=0),0,RAMData(converge,$A85*s_per_year, sigma, nu, omega, 0, nsum, Calcs_pvals_path1_species2)) ->  | D85: =IF(OR(converge=0, RUN_RAM=0),0,RAMData(converge,$A85*s_per_year, sigma, nu, omega, 0, nsum, Calcs_pvals_path1_species3)) ->  | E85: =IF(OR(converge=0, RUN_RAM=0),0,RAMData(converge,$A85*s_per_year, sigma, nu, omega, 0, nsum, Calcs_pvals_path1_species4)) -> 
A86: 7.5 | B86: =IF(OR(converge=0, RUN_RAM=0),0,RAMData(converge,$A86*s_per_year, sigma, nu, omega, 0, nsum, Calcs_pvals_path1_species1)) ->  | C86: =IF(OR(converge=0, RUN_RAM=0),0,RAMData(converge,$A86*s_per_year, sigma, nu, omega, 0, nsum, Calcs_pvals_path1_species2)) ->  | D86: =IF(OR(converge=0, RUN_RAM=0),0,RAMData(converge,$A86*s_per_year, sigma, nu, omega, 0, nsum, Calcs_pvals_path1_species3)) ->  | E86: =IF(OR(converge=0, RUN_RAM=0),0,RAMData(converge,$A86*s_per_year, sigma, nu, omega, 0, nsum, Calcs_pvals_path1_species4)) -> 
A87: 7.6 | B87: =IF(OR(converge=0, RUN_RAM=0),0,RAMData(converge,$A87*s_per_year, sigma, nu, omega, 0, nsum, Calcs_pvals_path1_species1)) ->  | C87: =IF(OR(converge=0, RUN_RAM=0),0,RAMData(converge,$A87*s_per_year, sigma, nu, omega, 0, nsum, Calcs_pvals_path1_species2)) ->  | D87: =IF(OR(converge=0, RUN_RAM=0),0,RAMData(converge,$A87*s_per_year, sigma, nu, omega, 0, nsum, Calcs_pvals_path1_species3)) ->  | E87: =IF(OR(converge=0, RUN_RAM=0),0,RAMData(converge,$A87*s_per_year, sigma, nu, omega, 0, nsum, Calcs_pvals_path1_species4)) -> 
A88: 7.7 | B88: =IF(OR(converge=0, RUN_RAM=0),0,RAMData(converge,$A88*s_per_year, sigma, nu, omega, 0, nsum, Calcs_pvals_path1_species1)) ->  | C88: =IF(OR(converge=0, RUN_RAM=0),0,RAMData(converge,$A88*s_per_year, sigma, nu, omega, 0, nsum, Calcs_pvals_path1_species2)) ->  | D88: =IF(OR(converge=0, RUN_RAM=0),0,RAMData(converge,$A88*s_per_year, sigma, nu, omega, 0, nsum, Calcs_pvals_path1_species3)) ->  | E88: =IF(OR(converge=0, RUN_RAM=0),0,RAMData(converge,$A88*s_per_year, sigma, nu, omega, 0, nsum, Calcs_pvals_path1_species4)) -> 
A89: 7.8 | B89: =IF(OR(converge=0, RUN_RAM=0),0,RAMData(converge,$A89*s_per_year, sigma, nu, omega, 0, nsum, Calcs_pvals_path1_species1)) ->  | C89: =IF(OR(converge=0, RUN_RAM=0),0,RAMData(converge,$A89*s_per_year, sigma, nu, omega, 0, nsum, Calcs_pvals_path1_species2)) ->  | D89: =IF(OR(converge=0, RUN_RAM=0),0,RAMData(converge,$A89*s_per_year, sigma, nu, omega, 0, nsum, Calcs_pvals_path1_species3)) ->  | E89: =IF(OR(converge=0, RUN_RAM=0),0,RAMData(converge,$A89*s_per_year, sigma, nu, omega, 0, nsum, Calcs_pvals_path1_species4)) -> 
A90: 7.9 | B90: =IF(OR(converge=0, RUN_RAM=0),0,RAMData(converge,$A90*s_per_year, sigma, nu, omega, 0, nsum, Calcs_pvals_path1_species1)) ->  | C90: =IF(OR(converge=0, RUN_RAM=0),0,RAMData(converge,$A90*s_per_year, sigma, nu, omega, 0, nsum, Calcs_pvals_path1_species2)) ->  | D90: =IF(OR(converge=0, RUN_RAM=0),0,RAMData(converge,$A90*s_per_year, sigma, nu, omega, 0, nsum, Calcs_pvals_path1_species3)) ->  | E90: =IF(OR(converge=0, RUN_RAM=0),0,RAMData(converge,$A90*s_per_year, sigma, nu, omega, 0, nsum, Calcs_pvals_path1_species4)) -> 
A91: 8 | B91: =IF(OR(converge=0, RUN_RAM=0),0,RAMData(converge,$A91*s_per_year, sigma, nu, omega, 0, nsum, Calcs_pvals_path1_species1)) ->  | C91: =IF(OR(converge=0, RUN_RAM=0),0,RAMData(converge,$A91*s_per_year, sigma, nu, omega, 0, nsum, Calcs_pvals_path1_species2)) ->  | D91: =IF(OR(converge=0, RUN_RAM=0),0,RAMData(converge,$A91*s_per_year, sigma, nu, omega, 0, nsum, Calcs_pvals_path1_species3)) ->  | E91: =IF(OR(converge=0, RUN_RAM=0),0,RAMData(converge,$A91*s_per_year, sigma, nu, omega, 0, nsum, Calcs_pvals_path1_species4)) -> 
A92: 8.1 | B92: =IF(OR(converge=0, RUN_RAM=0),0,RAMData(converge,$A92*s_per_year, sigma, nu, omega, 0, nsum, Calcs_pvals_path1_species1)) ->  | C92: =IF(OR(converge=0, RUN_RAM=0),0,RAMData(converge,$A92*s_per_year, sigma, nu, omega, 0, nsum, Calcs_pvals_path1_species2)) ->  | D92: =IF(OR(converge=0, RUN_RAM=0),0,RAMData(converge,$A92*s_per_year, sigma, nu, omega, 0, nsum, Calcs_pvals_path1_species3)) ->  | E92: =IF(OR(converge=0, RUN_RAM=0),0,RAMData(converge,$A92*s_per_year, sigma, nu, omega, 0, nsum, Calcs_pvals_path1_species4)) -> 
A93: 8.2 | B93: =IF(OR(converge=0, RUN_RAM=0),0,RAMData(converge,$A93*s_per_year, sigma, nu, omega, 0, nsum, Calcs_pvals_path1_species1)) ->  | C93: =IF(OR(converge=0, RUN_RAM=0),0,RAMData(converge,$A93*s_per_year, sigma, nu, omega, 0, nsum, Calcs_pvals_path1_species2)) ->  | D93: =IF(OR(converge=0, RUN_RAM=0),0,RAMData(converge,$A93*s_per_year, sigma, nu, omega, 0, nsum, Calcs_pvals_path1_species3)) ->  | E93: =IF(OR(converge=0, RUN_RAM=0),0,RAMData(converge,$A93*s_per_year, sigma, nu, omega, 0, nsum, Calcs_pvals_path1_species4)) -> 
A94: 8.3 | B94: =IF(OR(converge=0, RUN_RAM=0),0,RAMData(converge,$A94*s_per_year, sigma, nu, omega, 0, nsum, Calcs_pvals_path1_species1)) ->  | C94: =IF(OR(converge=0, RUN_RAM=0),0,RAMData(converge,$A94*s_per_year, sigma, nu, omega, 0, nsum, Calcs_pvals_path1_species2)) ->  | D94: =IF(OR(converge=0, RUN_RAM=0),0,RAMData(converge,$A94*s_per_year, sigma, nu, omega, 0, nsum, Calcs_pvals_path1_species3)) ->  | E94: =IF(OR(converge=0, RUN_RAM=0),0,RAMData(converge,$A94*s_per_year, sigma, nu, omega, 0, nsum, Calcs_pvals_path1_species4)) -> 
A95: 8.4 | B95: =IF(OR(converge=0, RUN_RAM=0),0,RAMData(converge,$A95*s_per_year, sigma, nu, omega, 0, nsum, Calcs_pvals_path1_species1)) ->  | C95: =IF(OR(converge=0, RUN_RAM=0),0,RAMData(converge,$A95*s_per_year, sigma, nu, omega, 0, nsum, Calcs_pvals_path1_species2)) ->  | D95: =IF(OR(converge=0, RUN_RAM=0),0,RAMData(converge,$A95*s_per_year, sigma, nu, omega, 0, nsum, Calcs_pvals_path1_species3)) ->  | E95: =IF(OR(converge=0, RUN_RAM=0),0,RAMData(converge,$A95*s_per_year, sigma, nu, omega, 0, nsum, Calcs_pvals_path1_species4)) -> 
A96: 8.5 | B96: =IF(OR(converge=0, RUN_RAM=0),0,RAMData(converge,$A96*s_per_year, sigma, nu, omega, 0, nsum, Calcs_pvals_path1_species1)) ->  | C96: =IF(OR(converge=0, RUN_RAM=0),0,RAMData(converge,$A96*s_per_year, sigma, nu, omega, 0, nsum, Calcs_pvals_path1_species2)) ->  | D96: =IF(OR(converge=0, RUN_RAM=0),0,RAMData(converge,$A96*s_per_year, sigma, nu, omega, 0, nsum, Calcs_pvals_path1_species3)) ->  | E96: =IF(OR(converge=0, RUN_RAM=0),0,RAMData(converge,$A96*s_per_year, sigma, nu, omega, 0, nsum, Calcs_pvals_path1_species4)) -> 
A97: 8.6 | B97: =IF(OR(converge=0, RUN_RAM=0),0,RAMData(converge,$A97*s_per_year, sigma, nu, omega, 0, nsum, Calcs_pvals_path1_species1)) ->  | C97: =IF(OR(converge=0, RUN_RAM=0),0,RAMData(converge,$A97*s_per_year, sigma, nu, omega, 0, nsum, Calcs_pvals_path1_species2)) ->  | D97: =IF(OR(converge=0, RUN_RAM=0),0,RAMData(converge,$A97*s_per_year, sigma, nu, omega, 0, nsum, Calcs_pvals_path1_species3)) ->  | E97: =IF(OR(converge=0, RUN_RAM=0),0,RAMData(converge,$A97*s_per_year, sigma, nu, omega, 0, nsum, Calcs_pvals_path1_species4)) -> 
A98: 8.7 | B98: =IF(OR(converge=0, RUN_RAM=0),0,RAMData(converge,$A98*s_per_year, sigma, nu, omega, 0, nsum, Calcs_pvals_path1_species1)) ->  | C98: =IF(OR(converge=0, RUN_RAM=0),0,RAMData(converge,$A98*s_per_year, sigma, nu, omega, 0, nsum, Calcs_pvals_path1_species2)) ->  | D98: =IF(OR(converge=0, RUN_RAM=0),0,RAMData(converge,$A98*s_per_year, sigma, nu, omega, 0, nsum, Calcs_pvals_path1_species3)) ->  | E98: =IF(OR(converge=0, RUN_RAM=0),0,RAMData(converge,$A98*s_per_year, sigma, nu, omega, 0, nsum, Calcs_pvals_path1_species4)) -> 
A99: 8.8 | B99: =IF(OR(converge=0, RUN_RAM=0),0,RAMData(converge,$A99*s_per_year, sigma, nu, omega, 0, nsum, Calcs_pvals_path1_species1)) ->  | C99: =IF(OR(converge=0, RUN_RAM=0),0,RAMData(converge,$A99*s_per_year, sigma, nu, omega, 0, nsum, Calcs_pvals_path1_species2)) ->  | D99: =IF(OR(converge=0, RUN_RAM=0),0,RAMData(converge,$A99*s_per_year, sigma, nu, omega, 0, nsum, Calcs_pvals_path1_species3)) ->  | E99: =IF(OR(converge=0, RUN_RAM=0),0,RAMData(converge,$A99*s_per_year, sigma, nu, omega, 0, nsum, Calcs_pvals_path1_species4)) -> 
A100: 8.9 | B100: =IF(OR(converge=0, RUN_RAM=0),0,RAMData(converge,$A100*s_per_year, sigma, nu, omega, 0, nsum, Calcs_pvals_path1_species1)) ->  | C100: =IF(OR(converge=0, RUN_RAM=0),0,RAMData(converge,$A100*s_per_year, sigma, nu, omega, 0, nsum, Calcs_pvals_path1_species2)) ->  | D100: =IF(OR(converge=0, RUN_RAM=0),0,RAMData(converge,$A100*s_per_year, sigma, nu, omega, 0, nsum, Calcs_pvals_path1_species3)) ->  | E100: =IF(OR(converge=0, RUN_RAM=0),0,RAMData(converge,$A100*s_per_year, sigma, nu, omega, 0, nsum, Calcs_pvals_path1_species4)) -> 
A101: 9 | B101: =IF(OR(converge=0, RUN_RAM=0),0,RAMData(converge,$A101*s_per_year, sigma, nu, omega, 0, nsum, Calcs_pvals_path1_species1)) ->  | C101: =IF(OR(converge=0, RUN_RAM=0),0,RAMData(converge,$A101*s_per_year, sigma, nu, omega, 0, nsum, Calcs_pvals_path1_species2)) ->  | D101: =IF(OR(converge=0, RUN_RAM=0),0,RAMData(converge,$A101*s_per_year, sigma, nu, omega, 0, nsum, Calcs_pvals_path1_species3)) ->  | E101: =IF(OR(converge=0, RUN_RAM=0),0,RAMData(converge,$A101*s_per_year, sigma, nu, omega, 0, nsum, Calcs_pvals_path1_species4)) -> 
A102: 9.1 | B102: =IF(OR(converge=0, RUN_RAM=0),0,RAMData(converge,$A102*s_per_year, sigma, nu, omega, 0, nsum, Calcs_pvals_path1_species1)) ->  | C102: =IF(OR(converge=0, RUN_RAM=0),0,RAMData(converge,$A102*s_per_year, sigma, nu, omega, 0, nsum, Calcs_pvals_path1_species2)) ->  | D102: =IF(OR(converge=0, RUN_RAM=0),0,RAMData(converge,$A102*s_per_year, sigma, nu, omega, 0, nsum, Calcs_pvals_path1_species3)) ->  | E102: =IF(OR(converge=0, RUN_RAM=0),0,RAMData(converge,$A102*s_per_year, sigma, nu, omega, 0, nsum, Calcs_pvals_path1_species4)) -> 
A103: 9.2 | B103: =IF(OR(converge=0, RUN_RAM=0),0,RAMData(converge,$A103*s_per_year, sigma, nu, omega, 0, nsum, Calcs_pvals_path1_species1)) ->  | C103: =IF(OR(converge=0, RUN_RAM=0),0,RAMData(converge,$A103*s_per_year, sigma, nu, omega, 0, nsum, Calcs_pvals_path1_species2)) ->  | D103: =IF(OR(converge=0, RUN_RAM=0),0,RAMData(converge,$A103*s_per_year, sigma, nu, omega, 0, nsum, Calcs_pvals_path1_species3)) ->  | E103: =IF(OR(converge=0, RUN_RAM=0),0,RAMData(converge,$A103*s_per_year, sigma, nu, omega, 0, nsum, Calcs_pvals_path1_species4)) -> 
A104: 9.3 | B104: =IF(OR(converge=0, RUN_RAM=0),0,RAMData(converge,$A104*s_per_year, sigma, nu, omega, 0, nsum, Calcs_pvals_path1_species1)) ->  | C104: =IF(OR(converge=0, RUN_RAM=0),0,RAMData(converge,$A104*s_per_year, sigma, nu, omega, 0, nsum, Calcs_pvals_path1_species2)) ->  | D104: =IF(OR(converge=0, RUN_RAM=0),0,RAMData(converge,$A104*s_per_year, sigma, nu, omega, 0, nsum, Calcs_pvals_path1_species3)) ->  | E104: =IF(OR(converge=0, RUN_RAM=0),0,RAMData(converge,$A104*s_per_year, sigma, nu, omega, 0, nsum, Calcs_pvals_path1_species4)) -> 
A105: 9.4 | B105: =IF(OR(converge=0, RUN_RAM=0),0,RAMData(converge,$A105*s_per_year, sigma, nu, omega, 0, nsum, Calcs_pvals_path1_species1)) ->  | C105: =IF(OR(converge=0, RUN_RAM=0),0,RAMData(converge,$A105*s_per_year, sigma, nu, omega, 0, nsum, Calcs_pvals_path1_species2)) ->  | D105: =IF(OR(converge=0, RUN_RAM=0),0,RAMData(converge,$A105*s_per_year, sigma, nu, omega, 0, nsum, Calcs_pvals_path1_species3)) ->  | E105: =IF(OR(converge=0, RUN_RAM=0),0,RAMData(converge,$A105*s_per_year, sigma, nu, omega, 0, nsum, Calcs_pvals_path1_species4)) -> 
A106: 9.5 | B106: =IF(OR(converge=0, RUN_RAM=0),0,RAMData(converge,$A106*s_per_year, sigma, nu, omega, 0, nsum, Calcs_pvals_path1_species1)) ->  | C106: =IF(OR(converge=0, RUN_RAM=0),0,RAMData(converge,$A106*s_per_year, sigma, nu, omega, 0, nsum, Calcs_pvals_path1_species2)) ->  | D106: =IF(OR(converge=0, RUN_RAM=0),0,RAMData(converge,$A106*s_per_year, sigma, nu, omega, 0, nsum, Calcs_pvals_path1_species3)) ->  | E106: =IF(OR(converge=0, RUN_RAM=0),0,RAMData(converge,$A106*s_per_year, sigma, nu, omega, 0, nsum, Calcs_pvals_path1_species4)) -> 
A107: 9.6 | B107: =IF(OR(converge=0, RUN_RAM=0),0,RAMData(converge,$A107*s_per_year, sigma, nu, omega, 0, nsum, Calcs_pvals_path1_species1)) ->  | C107: =IF(OR(converge=0, RUN_RAM=0),0,RAMData(converge,$A107*s_per_year, sigma, nu, omega, 0, nsum, Calcs_pvals_path1_species2)) ->  | D107: =IF(OR(converge=0, RUN_RAM=0),0,RAMData(converge,$A107*s_per_year, sigma, nu, omega, 0, nsum, Calcs_pvals_path1_species3)) ->  | E107: =IF(OR(converge=0, RUN_RAM=0),0,RAMData(converge,$A107*s_per_year, sigma, nu, omega, 0, nsum, Calcs_pvals_path1_species4)) -> 
A108: 9.7 | B108: =IF(OR(converge=0, RUN_RAM=0),0,RAMData(converge,$A108*s_per_year, sigma, nu, omega, 0, nsum, Calcs_pvals_path1_species1)) ->  | C108: =IF(OR(converge=0, RUN_RAM=0),0,RAMData(converge,$A108*s_per_year, sigma, nu, omega, 0, nsum, Calcs_pvals_path1_species2)) ->  | D108: =IF(OR(converge=0, RUN_RAM=0),0,RAMData(converge,$A108*s_per_year, sigma, nu, omega, 0, nsum, Calcs_pvals_path1_species3)) ->  | E108: =IF(OR(converge=0, RUN_RAM=0),0,RAMData(converge,$A108*s_per_year, sigma, nu, omega, 0, nsum, Calcs_pvals_path1_species4)) -> 
A109: 9.8 | B109: =IF(OR(converge=0, RUN_RAM=0),0,RAMData(converge,$A109*s_per_year, sigma, nu, omega, 0, nsum, Calcs_pvals_path1_species1)) ->  | C109: =IF(OR(converge=0, RUN_RAM=0),0,RAMData(converge,$A109*s_per_year, sigma, nu, omega, 0, nsum, Calcs_pvals_path1_species2)) ->  | D109: =IF(OR(converge=0, RUN_RAM=0),0,RAMData(converge,$A109*s_per_year, sigma, nu, omega, 0, nsum, Calcs_pvals_path1_species3)) ->  | E109: =IF(OR(converge=0, RUN_RAM=0),0,RAMData(converge,$A109*s_per_year, sigma, nu, omega, 0, nsum, Calcs_pvals_path1_species4)) -> 
A110: 9.9 | B110: =IF(OR(converge=0, RUN_RAM=0),0,RAMData(converge,$A110*s_per_year, sigma, nu, omega, 0, nsum, Calcs_pvals_path1_species1)) ->  | C110: =IF(OR(converge=0, RUN_RAM=0),0,RAMData(converge,$A110*s_per_year, sigma, nu, omega, 0, nsum, Calcs_pvals_path1_species2)) ->  | D110: =IF(OR(converge=0, RUN_RAM=0),0,RAMData(converge,$A110*s_per_year, sigma, nu, omega, 0, nsum, Calcs_pvals_path1_species3)) ->  | E110: =IF(OR(converge=0, RUN_RAM=0),0,RAMData(converge,$A110*s_per_year, sigma, nu, omega, 0, nsum, Calcs_pvals_path1_species4)) -> 
A111: 10 | B111: =IF(OR(converge=0, RUN_RAM=0),0,RAMData(converge,$A111*s_per_year, sigma, nu, omega, 0, nsum, Calcs_pvals_path1_species1)) ->  | C111: =IF(OR(converge=0, RUN_RAM=0),0,RAMData(converge,$A111*s_per_year, sigma, nu, omega, 0, nsum, Calcs_pvals_path1_species2)) ->  | D111: =IF(OR(converge=0, RUN_RAM=0),0,RAMData(converge,$A111*s_per_year, sigma, nu, omega, 0, nsum, Calcs_pvals_path1_species3)) ->  | E111: =IF(OR(converge=0, RUN_RAM=0),0,RAMData(converge,$A111*s_per_year, sigma, nu, omega, 0, nsum, Calcs_pvals_path1_species4)) -> 
